Workbook

Sheet Title
A16: Repair Order Analysis
A17: And Summary | K17: =TODAY() -> 2018-05-03
A30: Dealership
A33: Student
A36: Class and ID Number | H36: Computer Application by George A. Parker Management Instructor NADA Dealer Academy

Sheet Tech Pay
B1: Tech # | C1: Tech Pay Per FRH

Sheet Input Sheet
C2: Repair Order Analysis Input Sheet
G3: Competitive Labor | L3: Maintenance Labor | Q3: Repair Labor | V3: Total Cost of Labor | W3: One Item Repair Order
C4: RO Number | D4: Year | E4: Model | F4: Mileage | G4: Labor Sales | H4: Flat Rate Hours | I4: Technican Number | J4: Pay Per FRH | K4: Labor Cost | L4: Labor Sales | M4: Flat Rate Hours | N4: Technican Number | O4: Pay Per FRH | P4: Labor Cost | Q4: Labor Sales | R4: Flat Rate Hours | S4: Technican Number | T4: Pay Per FRH | U4: Labor Cost
B6: 1 | C6: 188333 | D6: 2011 | E6: Camry | F6: 64665 | G6: ='Input Sheet'!I6 -> 400 | H6: ='Input Sheet'!J6 -> 20 | I6: ='Input Sheet'!K6 -> 400 | J6: ='Input Sheet'!L6 -> 20 | K6: =H6*J6 -> 400 | L6: 20 | M6: 0.4 | N6: ='Input Sheet'!K6 -> 400 | O6: ='Input Sheet'!L6 -> 20 | P6: =M6*O6 -> 8 | Q6: 0 | R6: ='Input Sheet'!T6 -> 20 | S6: ='Input Sheet'!U6 -> 400 | T6: ='Input Sheet'!V6 -> 20 | U6: =R6*T6 -> 400 | V6: 20 | W6: 1
B7: 2 | C7: 188337 | D7: 2006 | E7: 4Runner | F7: 139923 | G7: ='Input Sheet'!I7 -> 0 | H7: ='Input Sheet'!J7 -> 0 | I7: ='Input Sheet'!K7 -> 0 | J7: ='Input Sheet'!L7 ->  | K7: =H7*J7 ->  | L7: ='Input Sheet'!N7 -> 0 | M7: ='Input Sheet'!O7 -> 0 | N7: ='Input Sheet'!K7 -> 0 | O7: ='Input Sheet'!L7 ->  | P7: =M7*O7 ->  | Q7: 35.7 | R7: 0.3 | S7: ='Input Sheet'!U7 -> 10.71 | T7: ='Input Sheet'!V7 -> 35.7 | U7: =R7*T7 -> 10.71 | V7: 35.7 | W7: 1
B8: 3 | C8: 188343 | D8: 2013 | E8: Sequoia | F8: 99915 | G8: 19.95 | H8: 0.15 | I8: ='Input Sheet'!K8 -> 8.2425 | J8: ='Input Sheet'!L8 -> 54.95 | K8: 8.2425 | L8: 54.95 | M8: 0.6 | N8: ='Input Sheet'!K8 -> 8.2425 | O8: ='Input Sheet'!L8 -> 54.95 | P8: 32.97 | Q8: 29.95 | R8: 0.4 | S8: ='Input Sheet'!U8 -> 41.94 | T8: ='Input Sheet'!V8 -> 104.85 | U8: 41.94 | V8: 104.85 | W8: 3
B9: 4 | C9: 188344 | D9: 2014 | E9: LEXUS | F9: 31093 | G9: ='Input Sheet'!I9 -> 400 | H9: ='Input Sheet'!J9 -> 20 | I9: ='Input Sheet'!K9 -> 400 | J9: ='Input Sheet'!L9 -> 20 | K9: 400 | L9: 20 | M9: 0.35 | N9: ='Input Sheet'!K9 -> 400 | O9: ='Input Sheet'!L9 -> 20 | P9: 7 | Q9: ='Input Sheet'!S9 -> 400 | R9: ='Input Sheet'!T9 -> 20 | S9: ='Input Sheet'!U9 -> 400 | T9: ='Input Sheet'!V9 -> 20 | U9: 400 | V9: 20 | W9: 2
B10: 5 | C10: 188345 | D10: 2014 | E10: COROLLA | F10: 8947 | G10: ='Input Sheet'!I10 -> 0 | H10: ='Input Sheet'!J10 -> 0 | I10: ='Input Sheet'!K10 -> 0 | J10: ='Input Sheet'!L10 ->  | L10: ='Input Sheet'!N10 -> 0 | M10: ='Input Sheet'!O10 -> 0 | N10: ='Input Sheet'!K10 -> 0 | O10: ='Input Sheet'!L10 ->  | Q10: 119.99 | R10: 1 | S10: ='Input Sheet'!U10 -> 0 | T10: ='Input Sheet'!V10 -> 0 | U10: 0 | V10: ='Input Sheet'!X10 -> 0 | W10: 1
B11: 6 | C11: 188348 | D11: 2011 | E11: Camry | F11: 85279 | G11: 89.95 | H11: 1.2 | I11: ='Input Sheet'!K11 -> 0 | J11: ='Input Sheet'!L11 ->  | L11: ='Input Sheet'!N11 -> 0 | M11: ='Input Sheet'!O11 -> 0 | N11: ='Input Sheet'!K11 -> 0 | O11: ='Input Sheet'!L11 ->  | Q11: ='Input Sheet'!S11 -> 8091.0025 | R11: ='Input Sheet'!T11 -> 89.95 | S11: ='Input Sheet'!U11 -> 8091.0025 | T11: ='Input Sheet'!V11 -> 89.95 | U11: 8091.0025 | V11: 89.95 | W11: 1
B12: 7 | C12: 188350 | D12: 2015 | E12: Camry | F12: 35674 | G12: 119.99 | H12: 1 | I12: ='Input Sheet'!K12 -> 0 | J12: ='Input Sheet'!L12 ->  | L12: ='Input Sheet'!N12 -> 0 | M12: ='Input Sheet'!O12 -> 0 | N12: ='Input Sheet'!K12 -> 0 | O12: ='Input Sheet'!L12 ->  | Q12: ='Input Sheet'!S12 -> 14161 | R12: ='Input Sheet'!T12 -> 119 | S12: ='Input Sheet'!U12 -> 14161 | T12: ='Input Sheet'!V12 -> 119 | U12: 14161 | V12: 119 | W12: 1
B13: 8 | C13: 188351 | D13: 2006 | E13: AVALON | F13: 145971 | G13: 89.95 | H13: 1.2 | I13: ='Input Sheet'!K13 -> 0 | J13: ='Input Sheet'!L13 ->  | L13: ='Input Sheet'!N13 -> 0 | M13: ='Input Sheet'!O13 -> 0 | N13: ='Input Sheet'!K13 -> 0 | O13: ='Input Sheet'!L13 ->  | Q13: ='Input Sheet'!S13 -> 8091.0025 | R13: ='Input Sheet'!T13 -> 89.95 | S13: ='Input Sheet'!U13 -> 8091.0025 | T13: ='Input Sheet'!V13 -> 89.95 | U13: 8091.0025 | V13: 89.95 | W13: 2
B14: 9 | C14: 188353 | D14: 2009 | E14: CAMRY | F14: 58973 | G14: ='Input Sheet'!I14 -> 400 | H14: ='Input Sheet'!J14 -> 20 | I14: ='Input Sheet'!K14 -> 400 | J14: ='Input Sheet'!L14 -> 20 | K14: 400 | L14: 20 | M14: 0.64 | N14: ='Input Sheet'!K14 -> 400 | O14: ='Input Sheet'!L14 -> 20 | P14: 12.8 | Q14: ='Input Sheet'!S14 -> 400 | R14: ='Input Sheet'!T14 -> 20 | S14: ='Input Sheet'!U14 -> 400 | T14: ='Input Sheet'!V14 -> 20 | U14: 400 | V14: 20 | W14: 1
B15: 10 | C15: 188354 | D15: 2011 | E15: CAMRY | F15: 71094 | G15: 89.95 | H15: 1.2 | I15: ='Input Sheet'!K15 -> 0 | J15: ='Input Sheet'!L15 ->  | L15: ='Input Sheet'!N15 -> 0 | M15: ='Input Sheet'!O15 -> 0 | N15: ='Input Sheet'!K15 -> 0 | O15: ='Input Sheet'!L15 ->  | Q15: ='Input Sheet'!S15 -> 8091.0025 | R15: ='Input Sheet'!T15 -> 89.95 | S15: ='Input Sheet'!U15 -> 8091.0025 | T15: ='Input Sheet'!V15 -> 89.95 | U15: 8091.0025 | V15: 89.95 | W15: 2
B16: 11 | C16: 188355 | D16: 2008 | E16: LEXUS | F16: 101626 | G16: ='Input Sheet'!I16 -> 400 | H16: ='Input Sheet'!J16 -> 20 | I16: ='Input Sheet'!K16 -> 400 | J16: ='Input Sheet'!L16 -> 20 | K16: 400 | L16: 20 | M16: 0.4 | N16: ='Input Sheet'!K16 -> 400 | O16: ='Input Sheet'!L16 -> 20 | P16: 8 | Q16: ='Input Sheet'!S16 -> 1844.7025 | R16: ='Input Sheet'!T16 -> 42.95 | S16: ='Input Sheet'!U16 -> 1844.7025 | T16: ='Input Sheet'!V16 -> 42.95 | U16: 1844.7025 | V16: 42.95 | W16: 1
B17: 12 | C17: 188356 | D17: 2010 | E17: SCION XD | F17: 125764 | G17: 119.99 | H17: 1 | I17: ='Input Sheet'!K17 -> 0 | J17: ='Input Sheet'!L17 ->  | L17: ='Input Sheet'!N17 -> 0 | M17: ='Input Sheet'!O17 -> 0 | N17: ='Input Sheet'!K17 -> 0 | O17: ='Input Sheet'!L17 ->  | Q17: ='Input Sheet'!S17 -> 14161 | R17: ='Input Sheet'!T17 -> 119 | S17: ='Input Sheet'!U17 -> 14161 | T17: ='Input Sheet'!V17 -> 119 | U17: 14161 | V17: 119 | W17: 1
B18: 13 | C18: 188359 | D18: 2015 | E18: CAMRY | F18: 24457 | G18: ='Input Sheet'!I18 -> 400 | H18: ='Input Sheet'!J18 -> 20 | I18: ='Input Sheet'!K18 -> 400 | J18: ='Input Sheet'!L18 -> 20 | K18: 400 | L18: 20 | M18: 0.4 | N18: ='Input Sheet'!K18 -> 400 | O18: ='Input Sheet'!L18 -> 20 | P18: 8 | Q18: ='Input Sheet'!S18 -> 400 | R18: ='Input Sheet'!T18 -> 20 | S18: ='Input Sheet'!U18 -> 400 | T18: ='Input Sheet'!V18 -> 20 | U18: 400 | V18: 20 | W18: 2
B19: 14 | C19: 188361 | D19: 2015 | E19: CAMRY | F19: 43270 | G19: ='Input Sheet'!I19 -> 1764 | H19: ='Input Sheet'!J19 -> 42 | I19: ='Input Sheet'!K19 -> 1764 | J19: ='Input Sheet'!L19 -> 42 | K19: 1764 | L19: 42 | M19: 0.6 | N19: ='Input Sheet'!K19 -> 1764 | O19: ='Input Sheet'!L19 -> 42 | P19: 25.2 | Q19: ='Input Sheet'!S19 -> 5176.8025 | R19: ='Input Sheet'!T19 -> 71.95 | S19: ='Input Sheet'!U19 -> 5176.8025 | T19: ='Input Sheet'!V19 -> 71.95 | U19: 5176.8025 | V19: 71.95 | W19: 1
B20: 15 | C20: 188362 | D20: 2012 | E20: CAMRY | F20: 100597 | G20: ='Input Sheet'!I20 -> 400 | H20: ='Input Sheet'!J20 -> 20 | I20: ='Input Sheet'!K20 -> 400 | J20: ='Input Sheet'!L20 -> 20 | K20: 400 | L20: 20 | M20: 0.4 | N20: ='Input Sheet'!K20 -> 400 | O20: ='Input Sheet'!L20 -> 20 | P20: 8 | Q20: ='Input Sheet'!S20 -> 400 | R20: ='Input Sheet'!T20 -> 20 | S20: ='Input Sheet'!U20 -> 400 | T20: ='Input Sheet'!V20 -> 20 | U20: 400 | V20: 20 | W20: 1
B21: 16 | C21: 188364 | D21: 2008 | E21: FJ CRUSIER | F21: 116692 | G21: ='Input Sheet'!I21 -> 400 | H21: ='Input Sheet'!J21 -> 20 | I21: ='Input Sheet'!K21 -> 400 | J21: ='Input Sheet'!L21 -> 20 | K21: 400 | L21: 20 | M21: 0.4 | N21: ='Input Sheet'!K21 -> 400 | O21: ='Input Sheet'!L21 -> 20 | P21: 8 | Q21: ='Input Sheet'!S21 -> 1844.7025 | R21: ='Input Sheet'!T21 -> 42.95 | S21: ='Input Sheet'!U21 -> 1844.7025 | T21: ='Input Sheet'!V21 -> 42.95 | U21: 1844.7025 | V21: 42.95 | W21: 1
B22: 17 | C22: 188366 | D22: 2013 | E22: PRIUS | F22: 96180 | G22: ='Input Sheet'!I22 -> 400 | H22: ='Input Sheet'!J22 -> 20 | I22: ='Input Sheet'!K22 -> 400 | J22: ='Input Sheet'!L22 -> 20 | K22: 400 | L22: 20 | M22: 0.4 | N22: ='Input Sheet'!K22 -> 400 | O22: ='Input Sheet'!L22 -> 20 | P22: 8 | Q22: ='Input Sheet'!S22 -> 2495.0025 | R22: ='Input Sheet'!T22 -> 49.95 | S22: ='Input Sheet'!U22 -> 2495.0025 | T22: ='Input Sheet'!V22 -> 49.95 | U22: 2495.0025 | V22: 49.95 | W22: 1
B23: 18 | C23: 188367 | D23: 2014 | E23: TACOMA | F23: 53420 | G23: ='Input Sheet'!I23 -> 400 | H23: ='Input Sheet'!J23 -> 20 | I23: ='Input Sheet'!K23 -> 400 | J23: ='Input Sheet'!L23 -> 20 | K23: 400 | L23: 20 | M23: 0.4 | N23: ='Input Sheet'!K23 -> 400 | O23: ='Input Sheet'!L23 -> 20 | P23: 8 | Q23: ='Input Sheet'!S23 -> 3019.5025 | R23: ='Input Sheet'!T23 -> 54.95 | S23: ='Input Sheet'!U23 -> 3019.5025 | T23: ='Input Sheet'!V23 -> 54.95 | U23: 3019.5025 | V23: 54.95 | W23: 3
B24: 19 | C24: 188369 | D24: 2012 | E24: SCION XB | F24: 56386 | G24: ='Input Sheet'!I24 -> 400 | H24: ='Input Sheet'!J24 -> 20 | I24: ='Input Sheet'!K24 -> 400 | J24: ='Input Sheet'!L24 -> 20 | K24: 400 | L24: 20 | M24: 0.4 | N24: ='Input Sheet'!K24 -> 400 | O24: ='Input Sheet'!L24 -> 20 | P24: 8 | Q24: ='Input Sheet'!S24 -> 1596.0025 | R24: ='Input Sheet'!T24 -> 39.95 | S24: ='Input Sheet'!U24 -> 1596.0025 | T24: ='Input Sheet'!V24 -> 39.95 | U24: 1596.0025 | V24: 39.95 | W24: 1
B25: 20 | C25: 188370 | D25: 2011 | E25: COROLLA | F25: 93014 | G25: ='Input Sheet'!I25 -> 100 | H25: ='Input Sheet'!J25 -> 10 | I25: ='Input Sheet'!K25 -> 100 | J25: ='Input Sheet'!L25 -> 10 | K25: 100 | L25: 10 | M25: 0.4 | N25: ='Input Sheet'!K25 -> 100 | O25: ='Input Sheet'!L25 -> 10 | P25: 4 | Q25: ='Input Sheet'!S25 -> 2495.0025 | R25: ='Input Sheet'!T25 -> 49.95 | S25: ='Input Sheet'!U25 -> 2495.0025 | T25: ='Input Sheet'!V25 -> 49.95 | U25: 2495.0025 | V25: 49.95 | W25: 1
B26: 21 | C26: 188371 | D26: 2015 | E26: CAMRY | F26: 53107 | G26: ='Input Sheet'!I26 -> 100 | H26: ='Input Sheet'!J26 -> 10 | I26: ='Input Sheet'!K26 -> 100 | J26: ='Input Sheet'!L26 -> 10 | K26: 100 | L26: 10 | M26: 0.4 | N26: ='Input Sheet'!K26 -> 100 | O26: ='Input Sheet'!L26 -> 10 | P26: 4 | Q26: ='Input Sheet'!S26 -> 2495.0025 | R26: ='Input Sheet'!T26 -> 49.95 | S26: ='Input Sheet'!U26 -> 2495.0025 | T26: ='Input Sheet'!V26 -> 49.95 | U26: 2495.0025 | V26: 49.95 | W26: 1
B27: 22 | C27: 188372 | D27: 2009 | E27: AVALON | F27: 183323 | G27: 89.95 | H27: 1.2 | I27: ='Input Sheet'!K27 -> 0 | J27: ='Input Sheet'!L27 ->  | L27: ='Input Sheet'!N27 -> 0 | M27: ='Input Sheet'!O27 -> 0 | N27: ='Input Sheet'!K27 -> 0 | O27: ='Input Sheet'!L27 ->  | Q27: ='Input Sheet'!S27 -> 8091.0025 | R27: ='Input Sheet'!T27 -> 89.95 | S27: ='Input Sheet'!U27 -> 8091.0025 | T27: ='Input Sheet'!V27 -> 89.95 | U27: 8091.0025 | V27: 89.95 | W27: 1
B28: 23 | C28: 188373 | D28: 2011 | E28: CAMRY | F28: 72797 | G28: 89.95 | H28: 1.2 | I28: ='Input Sheet'!K28 -> 0 | J28: ='Input Sheet'!L28 ->  | L28: ='Input Sheet'!N28 -> 0 | M28: ='Input Sheet'!O28 -> 0 | N28: ='Input Sheet'!K28 -> 0 | O28: ='Input Sheet'!L28 ->  | Q28: ='Input Sheet'!S28 -> 8091.0025 | R28: ='Input Sheet'!T28 -> 89.95 | S28: ='Input Sheet'!U28 -> 8091.0025 | T28: ='Input Sheet'!V28 -> 89.95 | U28: 8091.0025 | V28: 89.95 | W28: 1
B29: 24 | C29: 188375 | D29: 1997 | E29: 4 RUNNER | F29: 182844 | G29: ='Input Sheet'!I29 -> 400 | H29: ='Input Sheet'!J29 -> 20 | I29: ='Input Sheet'!K29 -> 400 | J29: ='Input Sheet'!L29 -> 20 | K29: 400 | L29: 20 | M29: 0.4 | N29: ='Input Sheet'!K29 -> 400 | O29: ='Input Sheet'!L29 -> 20 | P29: 8 | Q29: ='Input Sheet'!S29 -> 2111.4025 | R29: ='Input Sheet'!T29 -> 45.95 | S29: ='Input Sheet'!U29 -> 2111.4025 | T29: ='Input Sheet'!V29 -> 45.95 | U29: 2111.4025 | V29: 45.95 | W29: 1
B30: 25 | C30: 188383 | D30: 2007 | E30: CAMRY | F30: 163777 | G30: ='Input Sheet'!I30 -> 400 | H30: ='Input Sheet'!J30 -> 20 | I30: ='Input Sheet'!K30 -> 400 | J30: ='Input Sheet'!L30 -> 20 | K30: 400 | L30: 20 | M30: 0.4 | N30: ='Input Sheet'!K30 -> 400 | O30: ='Input Sheet'!L30 -> 20 | P30: 8 | Q30: ='Input Sheet'!S30 -> 1596.0025 | R30: ='Input Sheet'!T30 -> 39.95 | S30: ='Input Sheet'!U30 -> 1596.0025 | T30: ='Input Sheet'!V30 -> 39.95 | U30: 1596.0025 | V30: 39.95 | W30: 1
B31: 26 | C31: 188384 | D31: 2016 | E31: RAV 4 | F31: 76906 | G31: 28.95 | H31: 0.21 | I31: ='Input Sheet'!K31 -> 0 | J31: ='Input Sheet'!L31 ->  | L31: ='Input Sheet'!N31 -> 0 | M31: ='Input Sheet'!O31 -> 0 | N31: ='Input Sheet'!K31 -> 0 | O31: ='Input Sheet'!L31 ->  | Q31: ='Input Sheet'!S31 -> 838.1025 | R31: ='Input Sheet'!T31 -> 28.95 | S31: ='Input Sheet'!U31 -> 838.1025 | T31: ='Input Sheet'!V31 -> 28.95 | U31: 838.1025 | V31: 28.95 | W31: 2
B32: 27 | C32: 188385 | D32: 2013 | E32: COROLLA | F32: 67773 | G32: ='Input Sheet'!I32 -> 400 | H32: ='Input Sheet'!J32 -> 20 | I32: ='Input Sheet'!K32 -> 400 | J32: ='Input Sheet'!L32 -> 20 | K32: 400 | L32: 20 | M32: 0.4 | N32: ='Input Sheet'!K32 -> 400 | O32: ='Input Sheet'!L32 -> 20 | P32: 8 | Q32: ='Input Sheet'!S32 -> 2495.0025 | R32: ='Input Sheet'!T32 -> 49.95 | S32: ='Input Sheet'!U32 -> 2495.0025 | T32: ='Input Sheet'!V32 -> 49.95 | U32: 2495.0025 | V32: 49.95 | W32: 1
B33: 28 | C33: 188387C | D33: 2016 | E33: HIGHLANDWE | F33: 32604 | G33: 89.95 | H33: 1.2 | I33: ='Input Sheet'!K33 -> 0 | J33: ='Input Sheet'!L33 ->  | L33: ='Input Sheet'!N33 -> 0 | M33: ='Input Sheet'!O33 -> 0 | N33: ='Input Sheet'!K33 -> 0 | O33: ='Input Sheet'!L33 ->  | Q33: ='Input Sheet'!S33 -> 8091.0025 | R33: ='Input Sheet'!T33 -> 89.95 | S33: ='Input Sheet'!U33 -> 8091.0025 | T33: ='Input Sheet'!V33 -> 89.95 | U33: 8091.0025 | V33: 89.95 | W33: 1
B34: 29 | C34: 188388 | D34: 2003 | E34: SEQUOIA | F34: 61036 | G34: ='Input Sheet'!I34 -> 400 | H34: ='Input Sheet'!J34 -> 20 | I34: ='Input Sheet'!K34 -> 400 | J34: ='Input Sheet'!L34 -> 20 | K34: 400 | L34: 20 | M34: 0.4 | N34: ='Input Sheet'!K34 -> 400 | O34: ='Input Sheet'!L34 -> 20 | P34: 8 | Q34: ='Input Sheet'!S34 -> 2111.4025 | R34: ='Input Sheet'!T34 -> 45.95 | S34: ='Input Sheet'!U34 -> 2111.4025 | T34: ='Input Sheet'!V34 -> 45.95 | U34: 2111.4025 | V34: 45.95 | W34: 1
B35: 30 | C35: 188390 | D35: 2005 | E35: CAMRY | F35: 223961 | G35: 64.31 | H35: 0.7 | I35: ='Input Sheet'!K35 -> 0 | J35: ='Input Sheet'!L35 ->  | L35: ='Input Sheet'!N35 -> 0 | M35: ='Input Sheet'!O35 -> 0 | N35: ='Input Sheet'!K35 -> 0 | O35: ='Input Sheet'!L35 ->  | Q35: ='Input Sheet'!S35 -> 14871.8025 | R35: ='Input Sheet'!T35 -> 121.95 | S35: ='Input Sheet'!U35 -> 14871.8025 | T35: ='Input Sheet'!V35 -> 121.95 | U35: 14871.8025 | V35: 121.95 | W35: 5
B36: 31 | C36: 188391 | D36: 2016 | E36: CAMRY | F36: 30395 | G36: 15 | H36: 0.4 | I36: ='Input Sheet'!K36 -> 0 | J36: ='Input Sheet'!L36 ->  | L36: ='Input Sheet'!N36 -> 0 | M36: ='Input Sheet'!O36 -> 0 | N36: ='Input Sheet'!K36 -> 0 | O36: ='Input Sheet'!L36 ->  | Q36: ='Input Sheet'!S36 -> 1288.81 | R36: ='Input Sheet'!T36 -> 35.9 | S36: ='Input Sheet'!U36 -> 1288.81 | T36: ='Input Sheet'!V36 -> 35.9 | U36: 1288.81 | V36: 35.9 | W36: 1
B37: 32 | C37: 188392 | D37: 2013 | E37: AVALON | F37: 66748 | G37: 22.99 | H37: 0.3 | I37: ='Input Sheet'!K37 -> 0 | J37: ='Input Sheet'!L37 ->  | L37: ='Input Sheet'!N37 -> 0 | M37: ='Input Sheet'!O37 -> 0 | N37: ='Input Sheet'!K37 -> 0 | O37: ='Input Sheet'!L37 ->  | Q37: ='Input Sheet'!S37 -> 528.5401 | R37: ='Input Sheet'!T37 -> 22.99 | S37: ='Input Sheet'!U37 -> 528.5401 | T37: ='Input Sheet'!V37 -> 22.99 | U37: 528.5401 | V37: 22.99 | W37: 1
B38: 33 | C38: 188393 | D38: 2008 | E38: CAMRY HYBRID | F38: 80067 | G38: ='Input Sheet'!I38 -> 400 | H38: ='Input Sheet'!J38 -> 20 | I38: ='Input Sheet'!K38 -> 400 | J38: ='Input Sheet'!L38 -> 20 | K38: 400 | L38: 20 | M38: 0.4 | N38: ='Input Sheet'!K38 -> 400 | O38: ='Input Sheet'!L38 -> 20 | P38: 8 | Q38: ='Input Sheet'!S38 -> 1596.0025 | R38: ='Input Sheet'!T38 -> 39.95 | S38: ='Input Sheet'!U38 -> 1596.0025 | T38: ='Input Sheet'!V38 -> 39.95 | U38: 1596.0025 | V38: 39.95 | W38: 2
B39: 34 | C39: 188394 | D39: 2007 | E39: COROLLA | F39: 187558 | G39: ='Input Sheet'!I39 -> 1764 | H39: ='Input Sheet'!J39 -> 42 | I39: ='Input Sheet'!K39 -> 1764 | J39: ='Input Sheet'!L39 -> 42 | K39: 1764 | L39: 42 | M39: 0.6 | N39: ='Input Sheet'!K39 -> 1764 | O39: ='Input Sheet'!L39 -> 42 | P39: 25.2 | Q39: ='Input Sheet'!S39 -> 3794.56 | R39: ='Input Sheet'!T39 -> 61.6 | S39: ='Input Sheet'!U39 -> 3794.56 | T39: ='Input Sheet'!V39 -> 61.6 | U39: 3794.56 | V39: 61.6 | W39: 3
B40: 35 | C40: 188395 | D40: 2013 | E40: CAMRY | F40: 54949 | G40: ='Input Sheet'!I40 -> 400 | H40: ='Input Sheet'!J40 -> 20 | I40: ='Input Sheet'!K40 -> 400 | J40: ='Input Sheet'!L40 -> 20 | K40: 400 | L40: 20 | M40: 0.4 | N40: ='Input Sheet'!K40 -> 400 | O40: ='Input Sheet'!L40 -> 20 | P40: 8 | Q40: ='Input Sheet'!S40 -> 1221.5025 | R40: ='Input Sheet'!T40 -> 34.95 | S40: ='Input Sheet'!U40 -> 1221.5025 | T40: ='Input Sheet'!V40 -> 34.95 | U40: 1221.5025 | V40: 34.95 | W40: 2
B41: 36 | C41: 188398 | D41: 2009 | E41: TUNDRA | F41: 88510 | G41: ='Input Sheet'!I41 -> 400 | H41: ='Input Sheet'!J41 -> 20 | I41: ='Input Sheet'!K41 -> 400 | J41: ='Input Sheet'!L41 -> 20 | K41: 400 | L41: 20 | M41: 0.4 | N41: ='Input Sheet'!K41 -> 400 | O41: ='Input Sheet'!L41 -> 20 | P41: 8 | Q41: ='Input Sheet'!S41 -> 2111.4025 | R41: ='Input Sheet'!T41 -> 45.95 | S41: ='Input Sheet'!U41 -> 2111.4025 | T41: ='Input Sheet'!V41 -> 45.95 | U41: 2111.4025 | V41: 45.95 | W41: 1
B42: 37 | C42: 188399 | D42: 2009 | E42: LEXUS | F42: 121680 | G42: ='Input Sheet'!I42 -> 400 | H42: ='Input Sheet'!J42 -> 20 | I42: ='Input Sheet'!K42 -> 400 | J42: ='Input Sheet'!L42 -> 20 | K42: 400 | L42: 20 | M42: 0.4 | N42: ='Input Sheet'!K42 -> 400 | O42: ='Input Sheet'!L42 -> 20 | P42: 8 | Q42: ='Input Sheet'!S42 -> 2111.4025 | R42: ='Input Sheet'!T42 -> 45.95 | S42: ='Input Sheet'!U42 -> 2111.4025 | T42: ='Input Sheet'!V42 -> 45.95 | U42: 2111.4025 | V42: 45.95 | W42: 1
B43: 38 | C43: 188400 | D43: 2008 | E43: LEXUS | F43: 134079 | G43: ='Input Sheet'!I43 -> 400 | H43: ='Input Sheet'!J43 -> 20 | I43: ='Input Sheet'!K43 -> 400 | J43: ='Input Sheet'!L43 -> 20 | K43: 400 | L43: 20 | M43: 0.4 | N43: ='Input Sheet'!K43 -> 400 | O43: ='Input Sheet'!L43 -> 20 | P43: 8 | Q43: ='Input Sheet'!S43 -> 2860.1104 | R43: ='Input Sheet'!T43 -> 53.48 | S43: ='Input Sheet'!U43 -> 2860.1104 | T43: ='Input Sheet'!V43 -> 53.48 | U43: 2860.1104 | V43: 53.48 | W43: 1
B44: 39 | C44: 188401 | D44: 2016 | E44: SCION IM | F44: 44851 | G44: ='Input Sheet'!I44 -> 0 | H44: ='Input Sheet'!J44 -> 0 | I44: ='Input Sheet'!K44 -> 0 | J44: ='Input Sheet'!L44 ->  | L44: ='Input Sheet'!N44 -> 0 | M44: ='Input Sheet'!O44 -> 0 | N44: ='Input Sheet'!K44 -> 0 | O44: ='Input Sheet'!L44 ->  | Q44: 159.99 | R44: 2 | S44: ='Input Sheet'!U44 -> 429.98 | T44: ='Input Sheet'!V44 -> 214.99 | U44: 429.98 | V44: 214.99 | W44: 1
B45: 40 | C45: 188402 | D45: 2016 | E45: TACOMA | F45: 36943 | G45: ='Input Sheet'!I45 -> 484 | H45: ='Input Sheet'!J45 -> 22 | I45: ='Input Sheet'!K45 -> 484 | J45: ='Input Sheet'!L45 -> 22 | K45: 484 | L45: 22 | M45: 0.6 | N45: ='Input Sheet'!K45 -> 484 | O45: ='Input Sheet'!L45 -> 22 | P45: 13.2 | Q45: ='Input Sheet'!S45 -> 2124.2881 | R45: ='Input Sheet'!T45 -> 46.09 | S45: ='Input Sheet'!U45 -> 2124.2881 | T45: ='Input Sheet'!V45 -> 46.09 | U45: 2124.2881 | V45: 46.09 | W45: 1
B46: 41 | C46: 188404 | D46: 2011 | E46: COROLLA | F46: 50202 | G46: ='Input Sheet'!I46 -> 400 | H46: ='Input Sheet'!J46 -> 20 | I46: ='Input Sheet'!K46 -> 400 | J46: ='Input Sheet'!L46 -> 20 | K46: 400 | L46: 20 | M46: 0.4 | N46: ='Input Sheet'!K46 -> 400 | O46: ='Input Sheet'!L46 -> 20 | P46: 8 | Q46: ='Input Sheet'!S46 -> 1596.0025 | R46: ='Input Sheet'!T46 -> 39.95 | S46: ='Input Sheet'!U46 -> 1596.0025 | T46: ='Input Sheet'!V46 -> 39.95 | U46: 1596.0025 | V46: 39.95 | W46: 1
B47: 42 | C47: 188405 | D47: 2008 | E47: LEXUS | F47: 76407 | G47: ='Input Sheet'!I47 -> 400 | H47: ='Input Sheet'!J47 -> 20 | I47: ='Input Sheet'!K47 -> 400 | J47: ='Input Sheet'!L47 -> 20 | K47: 400 | L47: 20 | M47: 0.4 | N47: ='Input Sheet'!K47 -> 400 | O47: ='Input Sheet'!L47 -> 20 | P47: 8 | Q47: ='Input Sheet'!S47 -> 2396.1025 | R47: ='Input Sheet'!T47 -> 48.95 | S47: ='Input Sheet'!U47 -> 2396.1025 | T47: ='Input Sheet'!V47 -> 48.95 | U47: 2396.1025 | V47: 48.95 | W47: 1
B48: 43 | C48: 188407 | D48: 2014 | E48: CAMRY | F48: 55017 | G48: 90.29 | H48: 1 | I48: ='Input Sheet'!K48 -> 0 | J48: ='Input Sheet'!L48 ->  | L48: ='Input Sheet'!N48 -> 0 | M48: ='Input Sheet'!O48 -> 0 | N48: ='Input Sheet'!K48 -> 0 | O48: ='Input Sheet'!L48 ->  | Q48: ='Input Sheet'!S48 -> 19897.9236 | R48: ='Input Sheet'!T48 -> 141.06 | S48: ='Input Sheet'!U48 -> 19897.9236 | T48: ='Input Sheet'!V48 -> 141.06 | U48: 19897.9236 | V48: 141.06 | W48: 1
B49: 44 | C49: 188409 | D49: 2002 | E49: HIGHLANDER | F49: 235329 | G49: ='Input Sheet'!I49 -> 400 | H49: ='Input Sheet'!J49 -> 20 | I49: ='Input Sheet'!K49 -> 400 | J49: ='Input Sheet'!L49 -> 20 | K49: 400 | L49: 20 | M49: 0.4 | N49: ='Input Sheet'!K49 -> 400 | O49: ='Input Sheet'!L49 -> 20 | P49: 8 | Q49: ='Input Sheet'!S49 -> 2202.4249 | R49: ='Input Sheet'!T49 -> 46.93 | S49: ='Input Sheet'!U49 -> 2202.4249 | T49: ='Input Sheet'!V49 -> 46.93 | U49: 2202.4249 | V49: 46.93 | W49: 1
B50: 45 | C50: 188411 | D50: 2013 | E50: TACOMA | F50: 70174 | G50: 138 | H50: 1.5 | I50: ='Input Sheet'!K50 -> 0 | J50: ='Input Sheet'!L50 ->  | L50: ='Input Sheet'!N50 -> 0 | M50: ='Input Sheet'!O50 -> 0 | N50: ='Input Sheet'!K50 -> 0 | O50: ='Input Sheet'!L50 ->  | Q50: ='Input Sheet'!S50 -> 69142.7025 | R50: ='Input Sheet'!T50 -> 262.95 | S50: ='Input Sheet'!U50 -> 69142.7025 | T50: ='Input Sheet'!V50 -> 262.95 | U50: 69142.7025 | V50: 262.95 | W50: 3
B51: 46 | C51: 188412 | D51: 2015 | E51: CAMRY | F51: 52290 | G51: ='Input Sheet'!I51 -> 0 | H51: ='Input Sheet'!J51 -> 20 | I51: ='Input Sheet'!K51 -> 0 | J51: ='Input Sheet'!L51 -> 20 | K51: =H55*J51 -> 0 | L51: 20 | M51: 0.4 | N51: ='Input Sheet'!K51 -> 0 | O51: ='Input Sheet'!L51 -> 20 | P51: 8 | Q51: ='Input Sheet'!S51 -> 2495.0025 | R51: ='Input Sheet'!T51 -> 49.95 | S51: ='Input Sheet'!U51 -> 2495.0025 | T51: ='Input Sheet'!V51 -> 49.95 | U51: 2495.0025 | V51: 49.95 | W51: 1
B52: 47 | C52: 188413C | D52: 2016 | E52: CAMRY | F52: 40114 | G52: 119.99 | H52: 1.2 | I52: ='Input Sheet'!K99 -> 0 | J52: ='Input Sheet'!L99 -> 0 | K52: 0 | L52: ='Input Sheet'!N52 -> 0 | M52: ='Input Sheet'!O52 -> 0 | N52: ='Input Sheet'!K99 -> 0 | O52: ='Input Sheet'!L99 -> 0 | P52: 0 | Q52: ='Input Sheet'!S52 -> 0 | R52: ='Input Sheet'!T52 -> 247.6 | S52: ='Input Sheet'!U99 -> 0 | T52: ='Input Sheet'!V99 -> 247.6 | U52: 61305.76 | V52: 119.99 | W52: 2
B53: 48 | C53: 188414 | D53: 2011 | E53: AVALON | F53: 60096 | G53: ='Input Sheet'!I53 -> 0 | H53: ='Input Sheet'!J53 -> 20 | I53: ='Input Sheet'!K100 -> 0 | J53: ='Input Sheet'!L100 -> 20 | K53: 400 | L53: 20 | M53: 0.4 | N53: ='Input Sheet'!K100 -> 0 | O53: ='Input Sheet'!L100 -> 20 | P53: 8 | Q53: ='Input Sheet'!S53 -> 0 | R53: ='Input Sheet'!T53 -> 49.95 | S53: ='Input Sheet'!U100 -> 0 | T53: ='Input Sheet'!V100 -> 49.95 | U53: 2495.0025 | V53: 45.95 | W53: 1
B54: 49 | C54: 188415 | D54: 2016 | E54: COROLLA | F54: 18472 | G54: ='Input Sheet'!I54 -> 0 | H54: ='Input Sheet'!J54 -> 20 | I54: ='Input Sheet'!K101 -> 0 | J54: ='Input Sheet'!L101 -> 20 | K54: =H54*J54 -> 400 | L54: ='Input Sheet'!N54 -> 0 | M54: 0.5 | N54: ='Input Sheet'!K101 -> 0 | O54: ='Input Sheet'!L101 -> 20 | P54: =M54*O54 -> 10 | Q54: ='Input Sheet'!S54 -> 0 | R54: ='Input Sheet'!T54 -> 49.95 | S54: ='Input Sheet'!U101 -> 0 | T54: ='Input Sheet'!V101 -> 49.95 | U54: =R54*T54 -> 2495.0025 | V54: ='Input Sheet'!X54 -> 0 | W54: 1
B55: 50 | C55: 188416 | D55: 2008 | E55: CAMRY | F55: 82297 | G55: ='Input Sheet'!I55 -> 0 | H55: ='Input Sheet'!J55 -> 0 | I55: ='Input Sheet'!K105 -> 0 | J55: ='Input Sheet'!L105 -> 0 | K55: =#REF!*J55 ->  | L55: ='Input Sheet'!N55 -> 0 | M55: ='Input Sheet'!O55 -> 0 | N55: ='Input Sheet'!K105 -> 0 | O55: ='Input Sheet'!L105 -> 0 | P55: 0 | Q55: 119.99 | R55: 1 | S55: ='Input Sheet'!U105 -> 0 | T55: ='Input Sheet'!V105 -> 22.99 | U55: 22.99 | V55: 236.11 | W55: 1
B56: 51 | C56: 188417 | D56: 2011 | E56: CAMRY | F56: 123056 | G56: ='Input Sheet'!I106 -> 0 | H56: ='Input Sheet'!J106 -> 0 | I56: ='Input Sheet'!K106 -> 0 | J56: ='Input Sheet'!L106 ->  | K56: =H56*J56 ->  | L56: 20 | M56: 0.4 | N56: ='Input Sheet'!P106 -> 0 | O56: ='Input Sheet'!Q106 -> 239617.3271 | P56: 95846.93084 | Q56: ='Input Sheet'!S106 -> 0 | R56: ='Input Sheet'!T106 -> 0 | S56: ='Input Sheet'!U106 ->  | T56: ='Input Sheet'!V106 -> 7700.14 | U56: 0 | V56: 49.95 | W56: 2
B57: 52 | C57: 188418 | D57: 2014 | E57: CAMRY | F57: 49844 | G57: ='Input Sheet'!I107 -> 0 | H57: ='Input Sheet'!J107 -> 0 | I57: ='Input Sheet'!K107 -> 0 | J57: ='Input Sheet'!L107 -> Maintenance Labor | L57: 42 | M57: 0.6 | N57: ='Input Sheet'!P107 -> 0 | O57: ='Input Sheet'!Q107 -> Repair Labor | Q57: ='Input Sheet'!S107 -> 0 | R57: ='Input Sheet'!T107 -> 0 | S57: ='Input Sheet'!U107 -> 0 | T57: ='Input Sheet'!V107 -> Total Cost of Labor | V57: 71.95 | W57: 1
B58: 53 | C58: 188419 | D58: 2016 | E58: PRIUS | F58: 35479 | G58: 22.99 | H58: 0.3 | I58: ='Input Sheet'!K108 -> Labor Cost | J58: ='Input Sheet'!L108 -> Labor Sales | L58: ='Input Sheet'!N108 -> Technican Number | M58: ='Input Sheet'!O108 -> Pay Per FRH | N58: ='Input Sheet'!P108 -> Labor Cost | O58: ='Input Sheet'!Q108 -> Labor Sales | Q58: ='Input Sheet'!S108 -> Technican Number | R58: ='Input Sheet'!T108 -> Pay Per FRH | S58: ='Input Sheet'!U108 -> Labor Cost | T58: ='Input Sheet'!V108 -> 0 | V58: 25.12 | W58: 1
B59: 54 | C59: 188420 | D59: 2015 | E59: COROLLA | F59: 63436 | G59: ='Input Sheet'!I109 -> 0 | H59: ='Input Sheet'!J109 -> 0 | I59: ='Input Sheet'!K109 -> 0 | J59: ='Input Sheet'!L109 -> 0 | K59: 0 | L59: 20 | M59: 0.4 | N59: ='Input Sheet'!P109 -> 0 | O59: ='Input Sheet'!Q109 -> 0 | P59: 0 | Q59: ='Input Sheet'!S109 -> 0 | R59: ='Input Sheet'!T109 -> 0 | S59: ='Input Sheet'!U109 -> 0 | T59: ='Input Sheet'!V109 -> 0 | U59: 0 | V59: 40.9 | W59: 1
B60: 55 | C60: 188422 | D60: 2017 | E60: CAMRY | F60: 31732 | G60: 22 | H60: 0.3 | I60: ='Input Sheet'!K110 -> 0 | J60: ='Input Sheet'!L110 -> 0 | K60: 0 | L60: ='Input Sheet'!N110 -> 0 | M60: ='Input Sheet'!O110 -> 0 | N60: ='Input Sheet'!P110 -> 0 | O60: ='Input Sheet'!Q110 -> 0 | P60: 0 | Q60: ='Input Sheet'!S110 -> 0 | R60: ='Input Sheet'!T110 -> 0 | S60: ='Input Sheet'!U110 -> 0 | T60: ='Input Sheet'!V110 -> 0 | U60: 0 | V60: 237.45 | W60: 1
B61: 56 | C61: 188423 | D61: 2007 | E61: AVALON | F61: 120429 | G61: ='Input Sheet'!I111 -> 0 | H61: ='Input Sheet'!J111 -> 0 | I61: ='Input Sheet'!K111 -> 0 | J61: ='Input Sheet'!L111 -> 0 | K61: 0 | L61: 20 | M61: 0.4 | N61: ='Input Sheet'!P111 -> 0 | O61: ='Input Sheet'!Q111 -> 0 | P61: 0 | Q61: ='Input Sheet'!S111 -> 0 | R61: ='Input Sheet'!T111 -> 0 | S61: ='Input Sheet'!U111 -> 0 | T61: ='Input Sheet'!V111 -> 0 | U61: 0 | V61: 42.95 | W61: 1
B62: 57 | C62: 188424C | D62: 2009 | E62: COROLLA | F62: 100958 | G62: 119.99 | H62: 1 | I62: ='Input Sheet'!K112 -> 0 | J62: ='Input Sheet'!L112 -> 0 | K62: 0 | L62: ='Input Sheet'!N112 -> 0 | M62: ='Input Sheet'!O112 -> 0 | N62: ='Input Sheet'!P112 -> 0 | O62: ='Input Sheet'!Q112 -> 0 | P62: 0 | Q62: ='Input Sheet'!S112 -> 0 | R62: ='Input Sheet'!T112 -> 0 | S62: ='Input Sheet'!U112 -> 0 | T62: ='Input Sheet'!V112 -> 0 | U62: 0 | V62: 131.09 | W62: 1
B63: 58 | C63: 188425 | D63: 2013 | E63: HIGHLANDER | F63: 60836 | G63: ='Input Sheet'!I113 -> 0 | H63: ='Input Sheet'!J113 -> 0 | I63: ='Input Sheet'!K113 -> 0 | J63: ='Input Sheet'!L113 -> 0 | K63: 0 | L63: 42 | M63: 0.6 | N63: ='Input Sheet'!P113 -> 0 | O63: ='Input Sheet'!Q113 -> 0 | P63: 0 | Q63: ='Input Sheet'!S113 -> 0 | R63: ='Input Sheet'!T113 -> 0 | S63: ='Input Sheet'!U113 -> 0 | T63: ='Input Sheet'!V113 -> 0 | U63: 0 | V63: 76.95 | W63: 1
B64: 59 | C64: 188426 | D64: 2014 | E64: COROLLA | F64: 89057 | G64: ='Input Sheet'!I114 -> 0 | H64: ='Input Sheet'!J114 -> 0 | I64: ='Input Sheet'!K114 -> 0 | J64: ='Input Sheet'!L114 -> 0 | K64: 0 | L64: 42 | M64: 0.6 | N64: ='Input Sheet'!P114 -> 0 | O64: ='Input Sheet'!Q114 -> 0 | P64: 0 | Q64: ='Input Sheet'!S114 -> 0 | R64: ='Input Sheet'!T114 -> 0 | S64: ='Input Sheet'!U114 -> 0 | T64: ='Input Sheet'!V114 -> 0 | U64: 0 | V64: 83.65 | W64: 1
B65: 60 | C65: 188427 | D65: 2004 | E65: CAMRY | F65: 105362 | G65: ='Input Sheet'!I115 -> 0 | H65: ='Input Sheet'!J115 -> 0 | I65: ='Input Sheet'!K115 -> 0 | J65: ='Input Sheet'!L115 -> 0 | K65: 0 | L65: 20 | M65: 0.4 | N65: ='Input Sheet'!P115 -> 0 | O65: ='Input Sheet'!Q115 -> 0 | P65: 0 | Q65: ='Input Sheet'!S115 -> 0 | R65: ='Input Sheet'!T115 -> 0 | S65: ='Input Sheet'!U115 -> 0 | T65: ='Input Sheet'!V115 -> 0 | U65: 0 | V65: 49.95 | W65: 5
B66: 61 | C66: 188428 | D66: 2015 | E66: RAV4 | F66: 25629 | G66: 22.99 | H66: 0.3 | I66: ='Input Sheet'!K116 -> 0 | J66: ='Input Sheet'!L116 -> 0 | K66: 0 | L66: ='Input Sheet'!N116 -> 0 | M66: ='Input Sheet'!O116 -> 0 | N66: ='Input Sheet'!P116 -> 0 | O66: ='Input Sheet'!Q116 -> 0 | P66: 0 | Q66: ='Input Sheet'!S116 -> 0 | R66: ='Input Sheet'!T116 -> 0 | S66: ='Input Sheet'!U116 -> 0 | T66: ='Input Sheet'!V116 -> 0 | U66: 0 | V66: 56.75 | W66: 2
B67: 62 | C67: 188429 | D67: 2013 | E67: RAV4 | F67: 74960 | G67: ='Input Sheet'!I117 -> 0 | H67: ='Input Sheet'!J117 -> 0 | I67: ='Input Sheet'!K117 -> 0 | J67: ='Input Sheet'!L117 -> 0 | K67: 0 | L67: 20 | M67: 0.4 | N67: ='Input Sheet'!P117 -> 0 | O67: ='Input Sheet'!Q117 -> 0 | P67: 0 | Q67: ='Input Sheet'!S117 -> 0 | R67: ='Input Sheet'!T117 -> 0 | S67: ='Input Sheet'!U117 -> 0 | T67: ='Input Sheet'!V117 -> 0 | U67: 0 | V67: 49.95 | W67: 1
B68: 63 | C68: 188431C | D68: 2016 | E68: 4 RUNNER | F68: 33251 | G68: ='Input Sheet'!I118 -> 0 | H68: ='Input Sheet'!J118 -> 0 | I68: ='Input Sheet'!K118 -> 0 | J68: ='Input Sheet'!L118 -> 0 | K68: 0 | L68: ='Input Sheet'!N118 -> 0 | M68: ='Input Sheet'!O118 -> 0 | N68: ='Input Sheet'!P118 -> 0 | O68: ='Input Sheet'!Q118 -> 0 | P68: 0 | Q68: 22.99 | R68: 0.4 | S68: ='Input Sheet'!U118 -> 0 | T68: ='Input Sheet'!V118 -> 0 | U68: 0 | V68: 25.12 | W68: 1
B69: 64 | C69: 188432 | D69: 2013 | E69: AVALON | F69: 109905 | G69: ='Input Sheet'!I119 -> 0 | H69: ='Input Sheet'!J119 -> 0 | I69: ='Input Sheet'!K119 -> 0 | J69: ='Input Sheet'!L119 -> 0 | K69: 0 | L69: 20 | M69: 0.6 | N69: ='Input Sheet'!P119 -> 0 | O69: ='Input Sheet'!Q119 -> 0 | P69: 0 | Q69: ='Input Sheet'!S119 -> 0 | R69: ='Input Sheet'!T119 -> 0 | S69: ='Input Sheet'!U119 -> 0 | T69: ='Input Sheet'!V119 -> 0 | U69: 0 | V69: 30.54 | W69: 1
B70: 65 | C70: 199434 | D70: 2004 | E70: AVALON | F70: 130944 | G70: 159.99 | H70: 2 | I70: ='Input Sheet'!K120 -> 0 | J70: ='Input Sheet'!L120 -> 0 | K70: 0 | L70: ='Input Sheet'!N120 -> 0 | M70: ='Input Sheet'!O120 -> 0 | N70: ='Input Sheet'!P120 -> 0 | O70: ='Input Sheet'!Q120 -> 0 | P70: 0 | Q70: ='Input Sheet'!S120 -> 0 | R70: ='Input Sheet'!T120 -> 0 | S70: ='Input Sheet'!U120 -> 0 | T70: ='Input Sheet'!V120 -> 0 | U70: 0 | V70: 374.99 | W70: 2
B71: 66 | C71: 188436 | D71: 2008 | E71: AVALON | F71: 153451 | G71: ='Input Sheet'!I121 -> 0 | H71: ='Input Sheet'!J121 -> 0 | I71: ='Input Sheet'!K121 -> 0 | J71: ='Input Sheet'!L121 -> 0 | K71: 0 | L71: 20 | M71: 0.4 | N71: ='Input Sheet'!P121 -> 0 | O71: ='Input Sheet'!Q121 -> 0 | P71: =M71*O71 -> 0 | Q71: ='Input Sheet'!S121 -> 0 | R71: ='Input Sheet'!T121 -> 0 | S71: ='Input Sheet'!U121 -> 0 | T71: ='Input Sheet'!V121 -> 0 | U71: =R71*T71 -> 0 | V71: 45.95 | W71: 4
B72: 67 | C72: 188437 | D72: 2004 | E72: CELICA | F72: 189908 | G72: 89.95 | H72: 1.2 | I72: ='Input Sheet'!K122 -> 0 | J72: ='Input Sheet'!L122 -> 0 | K72: 0 | L72: ='Input Sheet'!N122 -> 0 | M72: ='Input Sheet'!O122 -> 0 | N72: ='Input Sheet'!P122 -> 0 | O72: ='Input Sheet'!Q122 -> 0 | P72: 0 | Q72: ='Input Sheet'!S122 -> 0 | R72: ='Input Sheet'!T122 -> 0 | S72: ='Input Sheet'!U122 -> 0 | T72: ='Input Sheet'!V122 -> 0 | U72: 0 | V72: 89.95 | W72: 3
B73: 68 | C73: 188438 | D73: 2001 | E73: LEXUS | F73: 63841 | G73: ='Input Sheet'!I123 -> 0 | H73: ='Input Sheet'!J123 -> 0 | I73: ='Input Sheet'!K123 -> 0 | J73: ='Input Sheet'!L123 -> 0 | K73: 0 | L73: 20 | M73: 0.4 | N73: ='Input Sheet'!P123 -> 0 | O73: ='Input Sheet'!Q123 -> 0 | P73: 0 | Q73: ='Input Sheet'!S123 -> 0 | R73: ='Input Sheet'!T123 -> 0 | S73: ='Input Sheet'!U123 -> 0 | T73: ='Input Sheet'!V123 -> 0 | U73: 0 | V73: 59.95 | W73: 1
B74: 69 | C74: 188439 | D74: 2010 | E74: SCION XD | F74: 65478 | G74: 22.99 | H74: 0.3 | I74: ='Input Sheet'!K124 -> 0 | J74: ='Input Sheet'!L124 -> 0 | K74: 0 | L74: ='Input Sheet'!N124 -> 0 | M74: ='Input Sheet'!O124 -> 0 | N74: ='Input Sheet'!P124 -> 0 | O74: ='Input Sheet'!Q124 -> 0 | P74: 0 | Q74: ='Input Sheet'!S124 -> 0 | R74: ='Input Sheet'!T124 -> 0 | S74: ='Input Sheet'!U124 -> 0 | T74: ='Input Sheet'!V124 -> 0 | U74: 0 | V74: 25.12 | W74: 1
B75: 70 | C75: 188440 | D75: 2010 | E75: CAMRY | F75: 112717 | G75: ='Input Sheet'!I125 -> 0 | H75: ='Input Sheet'!J125 -> 0 | I75: ='Input Sheet'!K125 -> 0 | J75: ='Input Sheet'!L125 -> 0 | K75: 0 | L75: 42 | M75: 0.6 | N75: ='Input Sheet'!P125 -> 0 | O75: ='Input Sheet'!Q125 -> 0 | P75: 0 | Q75: ='Input Sheet'!S125 -> 0 | R75: ='Input Sheet'!T125 -> 0 | S75: ='Input Sheet'!U125 -> 0 | T75: ='Input Sheet'!V125 -> 0 | U75: 0 | V75: 71.95 | W75: 3
B76: 71 | C76: 188441 | D76: 2016 | E76: CAMRY | F76: 27950 | G76: 22.99 | H76: 0.3 | I76: ='Input Sheet'!K126 -> 0 | J76: ='Input Sheet'!L126 -> 0 | K76: 0 | L76: ='Input Sheet'!N126 -> 0 | M76: ='Input Sheet'!O126 -> 0 | N76: ='Input Sheet'!P126 -> 0 | O76: ='Input Sheet'!Q126 -> 0 | P76: 0 | Q76: ='Input Sheet'!S126 -> 0 | R76: ='Input Sheet'!T126 -> 0 | S76: ='Input Sheet'!U126 -> 0 | T76: ='Input Sheet'!V126 -> 0 | U76: 0 | V76: 25.12 | W76: 1
B77: 72 | C77: 188442 | D77: 2009 | E77: TACOMA | F77: 110169 | G77: ='Input Sheet'!I127 -> 0 | H77: ='Input Sheet'!J127 -> 0 | I77: ='Input Sheet'!K127 -> 0 | J77: ='Input Sheet'!L127 -> 0 | K77: 0 | L77: 42 | M77: 0.6 | N77: ='Input Sheet'!P127 -> 0 | O77: ='Input Sheet'!Q127 -> 0 | P77: 0 | Q77: ='Input Sheet'!S127 -> 0 | R77: ='Input Sheet'!T127 -> 0 | S77: ='Input Sheet'!U127 -> 0 | T77: ='Input Sheet'!V127 -> 0 | U77: 0 | V77: 64.71 | W77: 5
B78: 73 | C78: 188447 | D78: 1997 | E78: CAMRY | F78: 264339 | H78: ='Input Sheet'!J128 -> 0 | I78: ='Input Sheet'!K128 -> 0 | J78: ='Input Sheet'!L128 -> 0 | K78: 0 | L78: ='Input Sheet'!N128 -> 0 | M78: ='Input Sheet'!O128 -> 0 | N78: ='Input Sheet'!P128 -> 0 | O78: ='Input Sheet'!Q128 -> 0 | P78: 0 | Q78: 5 | R78: 0.4 | S78: ='Input Sheet'!U128 -> 0 | T78: ='Input Sheet'!V128 -> 0 | U78: 0 | V78: 15.94 | W78: 2
B79: 74 | C79: 188453 | D79: 2014 | E79: COROLLA | F79: 54098 | G79: ='Input Sheet'!I129 -> 0 | H79: ='Input Sheet'!J129 -> 0 | I79: ='Input Sheet'!K129 -> 0 | J79: ='Input Sheet'!L129 -> 0 | K79: 0 | L79: 20 | M79: 0.3 | N79: ='Input Sheet'!P129 -> 0 | O79: ='Input Sheet'!Q129 -> 0 | P79: 0 | Q79: ='Input Sheet'!S129 -> 0 | R79: ='Input Sheet'!T129 -> 0 | S79: ='Input Sheet'!U129 -> 0 | T79: ='Input Sheet'!V129 -> 0 | U79: 0 | V79: 49.95 | W79: 1
B80: 75 | C80: 188454 | D80: 2015 | E80: COROLLA | F80: 24619 | G80: 22.99 | H80: 0.3 | I80: ='Input Sheet'!K130 -> 0 | J80: ='Input Sheet'!L130 -> 0 | K80: 0 | L80: ='Input Sheet'!N130 -> 0 | M80: ='Input Sheet'!O130 -> 0 | N80: ='Input Sheet'!P130 -> 0 | O80: ='Input Sheet'!Q130 -> 0 | P80: 0 | Q80: ='Input Sheet'!S130 -> 0 | R80: ='Input Sheet'!T130 -> 0 | S80: ='Input Sheet'!U130 -> 0 | T80: ='Input Sheet'!V130 -> 0 | U80: 0 | V80: 22.99 | W80: 1
B81: 76 | C81: 188455 | D81: 2014 | E81: LEXUS | F81: 47634 | G81: 22.99 | H81: 0.3 | I81: ='Input Sheet'!K131 -> 0 | J81: ='Input Sheet'!L131 -> 0 | K81: 0 | L81: ='Input Sheet'!N131 -> 0 | M81: ='Input Sheet'!O131 -> 0 | N81: ='Input Sheet'!P131 -> 0 | O81: ='Input Sheet'!Q131 -> 0 | P81: 0 | Q81: ='Input Sheet'!S131 -> 0 | R81: ='Input Sheet'!T131 -> 0 | S81: ='Input Sheet'!U131 -> 0 | T81: ='Input Sheet'!V131 -> 0 | U81: 0 | V81: 22.99 | W81: 1
B82: 77 | C82: 188456 | D82: 2013 | E82: PRIUS | F82: 71106 | G82: 22.99 | H82: 0.3 | I82: ='Input Sheet'!K132 -> 0 | J82: ='Input Sheet'!L132 -> 0 | K82: 0 | L82: ='Input Sheet'!N132 -> 0 | M82: ='Input Sheet'!O132 -> 0 | N82: ='Input Sheet'!P132 -> 0 | O82: ='Input Sheet'!Q132 -> 0 | P82: 0 | Q82: ='Input Sheet'!S132 -> 0 | R82: ='Input Sheet'!T132 -> 0 | S82: ='Input Sheet'!U132 -> 0 | T82: ='Input Sheet'!V132 -> 0 | U82: 0 | V82: 22.99 | W82: 1
B83: 78 | C83: 188457 | D83: 2013 | E83: LAND CRUISER | F83: 62307 | G83: ='Input Sheet'!I133 -> 0 | H83: ='Input Sheet'!J133 -> 0 | I83: ='Input Sheet'!K133 -> 0 | J83: ='Input Sheet'!L133 -> 0 | K83: 0 | L83: 42 | M83: 0.6 | N83: ='Input Sheet'!P133 -> 0 | O83: ='Input Sheet'!Q133 -> 0 | P83: 0 | Q83: ='Input Sheet'!S133 -> 0 | R83: ='Input Sheet'!T133 -> 0 | S83: ='Input Sheet'!U133 -> 0 | T83: ='Input Sheet'!V133 -> 0 | U83: 0 | V83: 86.95 | W83: 2
B84: 79 | C84: 188459 | D84: 2012 | E84: 4 RUNNER | F84: 89623 | G84: ='Input Sheet'!I134 -> 0 | H84: ='Input Sheet'!J134 -> 0 | I84: ='Input Sheet'!K134 -> 0 | J84: ='Input Sheet'!L134 -> 0 | K84: 0 | L84: 20 | M84: 0.4 | N84: ='Input Sheet'!P134 -> 0 | O84: ='Input Sheet'!Q134 -> 0 | P84: 0 | Q84: ='Input Sheet'!S134 -> 0 | R84: ='Input Sheet'!T134 -> 0 | S84: ='Input Sheet'!U134 -> 0 | T84: ='Input Sheet'!V134 -> 0 | U84: 0 | V84: 54.95 | W84: 1
B85: 80 | C85: 188460 | D85: 2013 | E85: TUNDRA | F85: 127145 | G85: ='Input Sheet'!I135 -> 0 | H85: ='Input Sheet'!J135 -> 0 | I85: ='Input Sheet'!K135 -> 0 | J85: ='Input Sheet'!L135 -> 0 | K85: 0 | L85: 20 | M85: 0.4 | N85: ='Input Sheet'!P135 -> 0 | O85: ='Input Sheet'!Q135 -> 0 | P85: 0 | Q85: ='Input Sheet'!S135 -> 0 | R85: ='Input Sheet'!T135 -> 0 | S85: ='Input Sheet'!U135 -> 0 | T85: ='Input Sheet'!V135 -> 0 | U85: 0 | V85: 64.95 | W85: 1
B86: 81 | C86: 188461 | D86: 2001 | E86: TUNDRA | F86: 200925 | G86: ='Input Sheet'!I136 -> 0 | H86: ='Input Sheet'!J136 -> 0 | I86: ='Input Sheet'!K136 -> 0 | J86: ='Input Sheet'!L136 -> 0 | K86: 0 | L86: ='Input Sheet'!N136 -> 0 | M86: ='Input Sheet'!O136 -> 0 | N86: ='Input Sheet'!P136 -> 0 | O86: ='Input Sheet'!Q136 -> 0 | P86: 0 | Q86: 178.5 | R86: 1.5 | S86: ='Input Sheet'!U136 -> 0 | T86: ='Input Sheet'!V136 -> 0 | U86: 0 | V86: 739.16 | W86: 2
B87: 82 | C87: 188463 | D87: 2009 | E87: CAMRY | F87: 149782 | G87: ='Input Sheet'!I137 -> 0 | H87: ='Input Sheet'!J137 -> 0 | I87: ='Input Sheet'!K137 -> 0 | J87: ='Input Sheet'!L137 -> 0 | K87: 0 | L87: ='Input Sheet'!N137 -> 0 | M87: ='Input Sheet'!O137 -> 0 | N87: ='Input Sheet'!P137 -> 0 | O87: ='Input Sheet'!Q137 -> 0 | P87: 0 | Q87: 119.99 | R87: 1 | S87: ='Input Sheet'!U137 -> 0 | T87: ='Input Sheet'!V137 -> 0 | U87: 0 | V87: 119.99 | W87: 1
B88: 83 | C88: 188465C | D88: 2013 | E88: COROLLA | F88: 71114 | G88: ='Input Sheet'!I138 -> 0 | H88: ='Input Sheet'!J138 -> 0 | I88: ='Input Sheet'!K138 -> 0 | J88: ='Input Sheet'!L138 -> 0 | K88: 0 | L88: 20 | M88: 0.4 | N88: ='Input Sheet'!P138 -> 0 | O88: ='Input Sheet'!Q138 -> 0 | P88: 0 | Q88: ='Input Sheet'!S138 -> 0 | R88: ='Input Sheet'!T138 -> 0 | S88: ='Input Sheet'!U138 -> 0 | T88: ='Input Sheet'!V138 -> 0 | U88: 0 | V88: 49.95 | W88: 3
B89: 84 | C89: 188469 | D89: 2016 | E89: AVALON | F89: 29934 | G89: ='Input Sheet'!I139 -> 0 | H89: ='Input Sheet'!J139 -> 0 | I89: ='Input Sheet'!K139 -> 0 | J89: ='Input Sheet'!L139 -> 0 | K89: 0 | L89: 20 | M89: 0.4 | N89: ='Input Sheet'!P139 -> 0 | O89: ='Input Sheet'!Q139 -> 0 | P89: 0 | Q89: ='Input Sheet'!S139 -> 0 | R89: ='Input Sheet'!T139 -> 0 | S89: ='Input Sheet'!U139 -> 0 | T89: ='Input Sheet'!V139 -> 0 | U89: 0 | V89: 47.28 | W89: 1
B90: 85 | C90: 188471 | D90: 2016 | E90: RAV4 | F90: 49966 | G90: 22 | H90: 0.28 | I90: ='Input Sheet'!K140 -> 0 | J90: ='Input Sheet'!L140 -> 0 | K90: 0 | L90: ='Input Sheet'!N140 -> 0 | M90: ='Input Sheet'!O140 -> 0 | N90: ='Input Sheet'!P140 -> 0 | O90: ='Input Sheet'!Q140 -> 0 | P90: 0 | Q90: ='Input Sheet'!S140 -> 0 | R90: ='Input Sheet'!T140 -> 0 | S90: ='Input Sheet'!U140 -> 0 | T90: ='Input Sheet'!V140 -> 0 | U90: 0 | V90: 185.6 | W90: 2
B91: 86 | C91: 188473 | D91: 2012 | E91: COROLLA | F91: 64367 | G91: ='Input Sheet'!I141 -> 0 | H91: ='Input Sheet'!J141 -> 0 | I91: ='Input Sheet'!K141 -> 0 | J91: ='Input Sheet'!L141 -> 0 | K91: 0 | L91: 22 | M91: 0.4 | N91: ='Input Sheet'!P141 -> 0 | O91: ='Input Sheet'!Q141 -> 0 | P91: 0 | Q91: ='Input Sheet'!S141 -> 0 | R91: ='Input Sheet'!T141 -> 0 | S91: ='Input Sheet'!U141 -> 0 | T91: ='Input Sheet'!V141 -> 0 | U91: 0 | V91: 49.95 | W91: 7
B92: 87 | C92: 188474 | D92: 2013 | E92: CAMRY | F92: 72455 | G92: ='Input Sheet'!I142 -> 0 | H92: ='Input Sheet'!J142 -> 0 | I92: ='Input Sheet'!K142 -> 0 | J92: ='Input Sheet'!L142 -> 0 | K92: 0 | L92: 20 | M92: 0.4 | N92: ='Input Sheet'!P142 -> 0 | O92: ='Input Sheet'!Q142 -> 0 | P92: 0 | Q92: ='Input Sheet'!S142 -> 0 | R92: ='Input Sheet'!T142 -> 0 | S92: ='Input Sheet'!U142 -> 0 | T92: ='Input Sheet'!V142 -> 0 | U92: 0 | V92: 49.95 | W92: 2
B93: 88 | C93: 188479 | D93: 2011 | E93: PRIUS | F93: 44550 | G93: ='Input Sheet'!I143 -> 0 | H93: ='Input Sheet'!J143 -> 0 | I93: ='Input Sheet'!K143 -> 0 | J93: ='Input Sheet'!L143 -> 0 | K93: 0 | L93: 20 | M93: 0.4 | N93: ='Input Sheet'!P143 -> 0 | O93: ='Input Sheet'!Q143 -> 0 | P93: 0 | Q93: ='Input Sheet'!S143 -> 0 | R93: ='Input Sheet'!T143 -> 0 | S93: ='Input Sheet'!U143 -> 0 | T93: ='Input Sheet'!V143 -> 0 | U93: 0 | V93: 49.95 | W93: 1
B94: 89 | C94: 188480 | D94: 2014 | E94: TUNDRA | F94: 107051 | G94: 91.03 | H94: 1 | I94: ='Input Sheet'!K144 -> 0 | J94: ='Input Sheet'!L144 -> 0 | K94: 0 | L94: ='Input Sheet'!N144 -> 0 | M94: ='Input Sheet'!O144 -> 0 | N94: ='Input Sheet'!P144 -> 0 | O94: ='Input Sheet'!Q144 -> 0 | P94: 0 | Q94: ='Input Sheet'!S144 -> 0 | R94: ='Input Sheet'!T144 -> 0 | S94: ='Input Sheet'!U144 -> 0 | T94: ='Input Sheet'!V144 -> 0 | U94: 0 | V94: 169.95 | W94: 2
B95: 90 | C95: 188481 | D95: 2010 | E95: LEXUS | F95: 147604 | G95: 42 | H95: 0.6 | I95: ='Input Sheet'!K145 -> 0 | J95: ='Input Sheet'!L145 -> 0 | K95: 0 | L95: ='Input Sheet'!N145 -> 0 | M95: ='Input Sheet'!O145 -> 0 | N95: ='Input Sheet'!P145 -> 0 | O95: ='Input Sheet'!Q145 -> 0 | P95: 0 | Q95: ='Input Sheet'!S145 -> 0 | R95: ='Input Sheet'!T145 -> 0 | S95: ='Input Sheet'!U145 -> 0 | T95: ='Input Sheet'!V145 -> 0 | U95: 0 | V95: 81.95 | W95: 2
B96: 91 | C96: 188482 | D96: 2009 | E96: HIGHLANDER | F96: 182668 | G96: ='Input Sheet'!I146 -> 0 | H96: ='Input Sheet'!J146 -> 0 | I96: ='Input Sheet'!K146 -> 0 | J96: ='Input Sheet'!L146 -> 0 | K96: 0 | L96: 20 | M96: 0.4 | N96: ='Input Sheet'!P146 -> 0 | O96: ='Input Sheet'!Q146 -> 0 | P96: 0 | Q96: ='Input Sheet'!S146 -> 0 | R96: ='Input Sheet'!T146 -> 0 | S96: ='Input Sheet'!U146 -> 0 | T96: ='Input Sheet'!V146 -> 0 | U96: 0 | V96: 39.95 | W96: 1
B97: 92 | C97: 188483 | D97: 2011 | E97: CAMRY HYBRID | F97: 49535 | G97: ='Input Sheet'!I147 -> 0 | H97: ='Input Sheet'!J147 -> 0 | I97: ='Input Sheet'!K147 -> 0 | J97: ='Input Sheet'!L147 -> 0 | K97: 0 | L97: 42 | M97: 0.6 | N97: ='Input Sheet'!P147 -> 0 | O97: ='Input Sheet'!Q147 -> 0 | P97: 0 | Q97: ='Input Sheet'!S147 -> 0 | R97: ='Input Sheet'!T147 -> 0 | S97: ='Input Sheet'!U147 -> 0 | T97: ='Input Sheet'!V147 -> 0 | U97: 0 | V97: 61.95 | W97: 4
B98: 93 | C98: 188484 | D98: 2005 | E98: LAND CRUISER | F98: 227975 | G98: ='Input Sheet'!I148 -> 0 | H98: ='Input Sheet'!J148 -> 0 | I98: ='Input Sheet'!K148 -> 0 | J98: ='Input Sheet'!L148 -> 0 | K98: 0 | L98: 42 | M98: 0.6 | N98: ='Input Sheet'!P148 -> 0 | O98: ='Input Sheet'!Q148 -> 0 | P98: 0 | Q98: ='Input Sheet'!S148 -> 0 | R98: ='Input Sheet'!T148 -> 0 | S98: ='Input Sheet'!U148 -> 0 | T98: ='Input Sheet'!V148 -> 0 | U98: 0 | V98: 70.95 | W98: 2
B99: 94 | C99: 188488 | D99: 2011 | E99: HIGHLANDER | F99: 191384 | G99: 22 | H99: 0.3 | I99: ='Input Sheet'!K149 -> 0 | J99: ='Input Sheet'!L149 -> 0 | K99: 0 | L99: ='Input Sheet'!N149 -> 0 | M99: ='Input Sheet'!O149 -> 0 | N99: ='Input Sheet'!P149 -> 0 | O99: ='Input Sheet'!Q149 -> 0 | P99: 0 | Q99: ='Input Sheet'!S149 -> 0 | R99: ='Input Sheet'!T149 -> 0 | S99: ='Input Sheet'!U149 -> 0 | T99: ='Input Sheet'!V149 -> 0 | U99: 0 | V99: 247.6 | W99: 2
B100: 95 | C100: 188489 | D100: 2012 | E100: CAMRY | F100: 75810 | G100: ='Input Sheet'!I150 -> 0 | H100: ='Input Sheet'!J150 -> 0 | I100: ='Input Sheet'!K150 -> 0 | J100: ='Input Sheet'!L150 -> 0 | K100: 0 | L100: 20 | M100: 0.4 | N100: ='Input Sheet'!P150 -> 0 | O100: ='Input Sheet'!Q150 -> 0 | P100: 0 | Q100: ='Input Sheet'!S150 -> 0 | R100: ='Input Sheet'!T150 -> 0 | S100: ='Input Sheet'!U150 -> 0 | T100: ='Input Sheet'!V150 -> 0 | U100: 0 | V100: 49.95 | W100: 2
B101: 96 | C101: 188491 | D101: 2012 | E101: CAMRY | F101: 106030 | G101: ='Input Sheet'!I151 -> 0 | H101: ='Input Sheet'!J151 -> 0 | I101: ='Input Sheet'!K151 -> 0 | J101: ='Input Sheet'!L151 -> 0 | K101: 0 | L101: 20 | M101: 0.4 | N101: ='Input Sheet'!P151 -> 0 | O101: ='Input Sheet'!Q151 -> 0 | P101: 0 | Q101: ='Input Sheet'!S151 -> 0 | R101: ='Input Sheet'!T151 -> 0 | S101: ='Input Sheet'!U151 -> 0 | T101: ='Input Sheet'!V151 -> 0 | U101: 0 | V101: 49.95 | W101: 2
B102: 97 | C102: 188492 | D102: 2015 | E102: COROLLA | F102: 47158 | G102: 22.99 | H102: 0.3 | I102: ='Input Sheet'!K152 -> 0 | J102: ='Input Sheet'!L152 -> 0 | K102: 0 | L102: ='Input Sheet'!N152 -> 0 | M102: ='Input Sheet'!O152 -> 0 | N102: ='Input Sheet'!P152 -> 0 | O102: ='Input Sheet'!Q152 -> 0 | P102: 0 | Q102: ='Input Sheet'!S152 -> 0 | R102: ='Input Sheet'!T152 -> 0 | S102: ='Input Sheet'!U152 -> 0 | T102: ='Input Sheet'!V152 -> 0 | U102: 0 | V102: 25.12 | W102: 1
B103: 98 | C103: 188493 | D103: 2003 | E103: SEQUOIA | F103: 291414 | G103: ='Input Sheet'!I153 -> 0 | H103: ='Input Sheet'!J153 -> 0 | I103: ='Input Sheet'!K153 -> 0 | J103: ='Input Sheet'!L153 -> 0 | K103: 0 | L103: 20 | M103: 0.4 | N103: ='Input Sheet'!P153 -> 0 | O103: ='Input Sheet'!Q153 -> 0 | P103: 0 | Q103: ='Input Sheet'!S153 -> 0 | R103: ='Input Sheet'!T153 -> 0 | S103: ='Input Sheet'!U153 -> 0 | T103: ='Input Sheet'!V153 -> 0 | U103: 0 | V103: 48.95 | W103: 1
B104: 99 | C104: 188413C | D104: 2016 | E104: CAMRY | F104: 40114 | G104: 119.99 | H104: 1 | I104: ='Input Sheet'!K154 -> 0 | J104: ='Input Sheet'!L154 -> 0 | K104: 0 | L104: ='Input Sheet'!N154 -> 0 | M104: ='Input Sheet'!O154 -> 0 | N104: ='Input Sheet'!P154 -> 0 | O104: ='Input Sheet'!Q154 -> 0 | P104: 0 | Q104: ='Input Sheet'!S154 -> 0 | R104: ='Input Sheet'!T154 -> 0 | S104: ='Input Sheet'!U154 -> 0 | T104: ='Input Sheet'!V154 -> 0 | U104: 0 | V104: 119.99 | W104: 2
B105: 100 | C105: 188418 | D105: 2011 | E105: CAMRY | F105: 123056 | G105: 22.99 | H105: 0.3 | I105: ='Input Sheet'!K155 -> 0 | J105: ='Input Sheet'!L155 -> 0 | K105: 0 | L105: ='Input Sheet'!N155 -> 0 | M105: ='Input Sheet'!O155 -> 0 | N105: ='Input Sheet'!P155 -> 0 | O105: ='Input Sheet'!Q155 -> 0 | P105: 0 | Q105: ='Input Sheet'!S155 -> 0 | R105: ='Input Sheet'!T155 -> 0 | S105: ='Input Sheet'!U155 -> 0 | T105: ='Input Sheet'!V155 -> 0 | U105: 0 | V105: 22.99 | W105: 2
E106: Totals | F106: Totals | G106: =SUM(G6:G105) -> 400 | H106: =SUM(H6:H105) -> 20 | K106: =SUM(K6:K105) -> 400 | L106: 20 | M106: 0.4 | P106: 8 | Q106: 239617.3271 | R106: 2945.15 | V106: 7700.14 | W106: =COUNTIF(W5:W105,1) -> 63
E107: Number of RO's in Sample | G107: Competative Labor | L107: Maintenance Labor | Q107: Repair Labor | V107: Total Cost of Labor | W107: One Item Repair Order
G108: Labor Sales | H108: Flat Rate Hours | I108: Technican Number | J108: Pay Per FRH | K108: Labor Cost | L108: Labor Sales | M108: Flat Rate Hours | N108: Technican Number | O108: Pay Per FRH | P108: Labor Cost | Q108: Labor Sales | R108: Flat Rate Hours | S108: Technican Number | T108: Pay Per FRH | U108: Labor Cost

Sheet RO Report 1-50
A1: Repair Order Analysis
E2: Competitive Labor | J2: Maintenance Labor | O2: Repair Labor
A3: Dealership | T3: Total Cost of Labor | U3: One Item Repair Order
A4: RO Number | E4: Labor Sales | F4: Flat Rate Hours | G4: Technician Number | H4: Pay Per FRH | I4: Labor Cost | J4: Labor Sales | K4: Flat Rate Hours | L4: Technician Number | M4: Pay Per FRH | N4: Labor Cost | O4: Labor Sales | P4: Flat Rate Hours | Q4: Technician Number | R4: Pay Per FRH | S4: Labor Cost
B5: Year | C5: Model | D5: Mileage
A6: 188333 | B6: 2011 | C6: Camry | D6: 64665 | E6: ='Input Sheet'!G6 -> 400 | F6: ='Input Sheet'!H6 -> 20 | G6: ='Input Sheet'!I6 -> 400 | H6: ='Input Sheet'!J6 -> 20 | I6: =F6*H6 -> 400 | J6: 20 | K6: 0.4 | L6: ='Input Sheet'!I6 -> 400 | M6: ='Input Sheet'!J6 -> 20 | N6: =K6*M6 -> 8 | O6: 0 | P6: ='Input Sheet'!R6 -> 20 | Q6: ='Input Sheet'!S6 -> 400 | R6: ='Input Sheet'!T6 -> 20 | S6: =P6*R6 -> 400 | T6: 20 | U6: 1
A7: 188337 | B7: 2006 | C7: 4Runner | D7: 139923 | E7: ='Input Sheet'!G7 -> 0 | F7: ='Input Sheet'!H7 -> 0 | G7: ='Input Sheet'!I7 -> 0 | H7: ='Input Sheet'!J7 ->  | I7: =F7*H7 ->  | J7: ='Input Sheet'!L7 -> 0 | K7: ='Input Sheet'!M7 -> 0 | L7: ='Input Sheet'!I7 -> 0 | M7: ='Input Sheet'!J7 ->  | N7: =K7*M7 ->  | O7: 35.7 | P7: 0.3 | Q7: ='Input Sheet'!S7 -> 10.71 | R7: ='Input Sheet'!T7 -> 35.7 | S7: =P7*R7 -> 10.71 | T7: 35.7 | U7: 1
A8: 188343 | B8: 2013 | C8: Sequoia | D8: 99915 | E8: 19.95 | F8: 0.15 | G8: ='Input Sheet'!I8 -> 8.2425 | H8: ='Input Sheet'!J8 -> 54.95 | I8: 8.2425 | J8: 54.95 | K8: 0.6 | L8: ='Input Sheet'!I8 -> 8.2425 | M8: ='Input Sheet'!J8 -> 54.95 | N8: 32.97 | O8: 29.95 | P8: 0.4 | Q8: ='Input Sheet'!S8 -> 41.94 | R8: ='Input Sheet'!T8 -> 104.85 | S8: 41.94 | T8: 104.85 | U8: 3
A9: 188344 | B9: 2014 | C9: LEXUS | D9: 31093 | E9: ='Input Sheet'!G9 -> 400 | F9: ='Input Sheet'!H9 -> 20 | G9: ='Input Sheet'!I9 -> 400 | H9: ='Input Sheet'!J9 -> 20 | I9: 400 | J9: 20 | K9: 0.35 | L9: ='Input Sheet'!I9 -> 400 | M9: ='Input Sheet'!J9 -> 20 | N9: 7 | O9: ='Input Sheet'!Q9 -> 400 | P9: ='Input Sheet'!R9 -> 20 | Q9: ='Input Sheet'!S9 -> 400 | R9: ='Input Sheet'!T9 -> 20 | S9: 400 | T9: 20 | U9: 2
A10: 188345 | B10: 2014 | C10: COROLLA | D10: 8947 | E10: ='Input Sheet'!G10 -> 0 | F10: ='Input Sheet'!H10 -> 0 | G10: ='Input Sheet'!I10 -> 0 | H10: ='Input Sheet'!J10 ->  | J10: ='Input Sheet'!L10 -> 0 | K10: ='Input Sheet'!M10 -> 0 | L10: ='Input Sheet'!I10 -> 0 | M10: ='Input Sheet'!J10 ->  | O10: 119.99 | P10: 1 | Q10: ='Input Sheet'!S10 -> 0 | R10: ='Input Sheet'!T10 -> 0 | S10: 0 | T10: ='Input Sheet'!V10 -> 0 | U10: 1
A11: 188348 | B11: 2011 | C11: Camry | D11: 85279 | E11: 89.95 | F11: 1.2 | G11: ='Input Sheet'!I11 -> 0 | H11: ='Input Sheet'!J11 ->  | J11: ='Input Sheet'!L11 -> 0 | K11: ='Input Sheet'!M11 -> 0 | L11: ='Input Sheet'!I11 -> 0 | M11: ='Input Sheet'!J11 ->  | O11: ='Input Sheet'!Q11 -> 8091.0025 | P11: ='Input Sheet'!R11 -> 89.95 | Q11: ='Input Sheet'!S11 -> 8091.0025 | R11: ='Input Sheet'!T11 -> 89.95 | S11: 8091.0025 | T11: 89.95 | U11: 1
A12: 188350 | B12: 2015 | C12: Camry | D12: 35674 | E12: 119.99 | F12: 1 | G12: ='Input Sheet'!I12 -> 0 | H12: ='Input Sheet'!J12 ->  | J12: ='Input Sheet'!L12 -> 0 | K12: ='Input Sheet'!M12 -> 0 | L12: ='Input Sheet'!I12 -> 0 | M12: ='Input Sheet'!J12 ->  | O12: ='Input Sheet'!Q12 -> 14161 | P12: ='Input Sheet'!R12 -> 119 | Q12: ='Input Sheet'!S12 -> 14161 | R12: ='Input Sheet'!T12 -> 119 | S12: 14161 | T12: 119 | U12: 1
A13: 188351 | B13: 2006 | C13: AVALON | D13: 145971 | E13: 89.95 | F13: 1.2 | G13: ='Input Sheet'!I13 -> 0 | H13: ='Input Sheet'!J13 ->  | J13: ='Input Sheet'!L13 -> 0 | K13: ='Input Sheet'!M13 -> 0 | L13: ='Input Sheet'!I13 -> 0 | M13: ='Input Sheet'!J13 ->  | O13: ='Input Sheet'!Q13 -> 8091.0025 | P13: ='Input Sheet'!R13 -> 89.95 | Q13: ='Input Sheet'!S13 -> 8091.0025 | R13: ='Input Sheet'!T13 -> 89.95 | S13: 8091.0025 | T13: 89.95 | U13: 2
A14: 188353 | B14: 2009 | C14: CAMRY | D14: 58973 | E14: ='Input Sheet'!G14 -> 400 | F14: ='Input Sheet'!H14 -> 20 | G14: ='Input Sheet'!I14 -> 400 | H14: ='Input Sheet'!J14 -> 20 | I14: 400 | J14: 20 | K14: 0.64 | L14: ='Input Sheet'!I14 -> 400 | M14: ='Input Sheet'!J14 -> 20 | N14: 12.8 | O14: ='Input Sheet'!Q14 -> 400 | P14: ='Input Sheet'!R14 -> 20 | Q14: ='Input Sheet'!S14 -> 400 | R14: ='Input Sheet'!T14 -> 20 | S14: 400 | T14: 20 | U14: 1
A15: 188354 | B15: 2011 | C15: CAMRY | D15: 71094 | E15: 89.95 | F15: 1.2 | G15: ='Input Sheet'!I15 -> 0 | H15: ='Input Sheet'!J15 ->  | J15: ='Input Sheet'!L15 -> 0 | K15: ='Input Sheet'!M15 -> 0 | L15: ='Input Sheet'!I15 -> 0 | M15: ='Input Sheet'!J15 ->  | O15: ='Input Sheet'!Q15 -> 8091.0025 | P15: ='Input Sheet'!R15 -> 89.95 | Q15: ='Input Sheet'!S15 -> 8091.0025 | R15: ='Input Sheet'!T15 -> 89.95 | S15: 8091.0025 | T15: 89.95 | U15: 2
A16: 188355 | B16: 2008 | C16: LEXUS | D16: 101626 | E16: ='Input Sheet'!G16 -> 400 | F16: ='Input Sheet'!H16 -> 20 | G16: ='Input Sheet'!I16 -> 400 | H16: ='Input Sheet'!J16 -> 20 | I16: 400 | J16: 20 | K16: 0.4 | L16: ='Input Sheet'!I16 -> 400 | M16: ='Input Sheet'!J16 -> 20 | N16: 8 | O16: ='Input Sheet'!Q16 -> 1844.7025 | P16: ='Input Sheet'!R16 -> 42.95 | Q16: ='Input Sheet'!S16 -> 1844.7025 | R16: ='Input Sheet'!T16 -> 42.95 | S16: 1844.7025 | T16: 42.95 | U16: 1
A17: 188356 | B17: 2010 | C17: SCION XD | D17: 125764 | E17: 119.99 | F17: 1 | G17: ='Input Sheet'!I17 -> 0 | H17: ='Input Sheet'!J17 ->  | J17: ='Input Sheet'!L17 -> 0 | K17: ='Input Sheet'!M17 -> 0 | L17: ='Input Sheet'!I17 -> 0 | M17: ='Input Sheet'!J17 ->  | O17: ='Input Sheet'!Q17 -> 14161 | P17: ='Input Sheet'!R17 -> 119 | Q17: ='Input Sheet'!S17 -> 14161 | R17: ='Input Sheet'!T17 -> 119 | S17: 14161 | T17: 119 | U17: 1
A18: 188359 | B18: 2015 | C18: CAMRY | D18: 24457 | E18: ='Input Sheet'!G18 -> 400 | F18: ='Input Sheet'!H18 -> 20 | G18: ='Input Sheet'!I18 -> 400 | H18: ='Input Sheet'!J18 -> 20 | I18: 400 | J18: 20 | K18: 0.4 | L18: ='Input Sheet'!I18 -> 400 | M18: ='Input Sheet'!J18 -> 20 | N18: 8 | O18: ='Input Sheet'!Q18 -> 400 | P18: ='Input Sheet'!R18 -> 20 | Q18: ='Input Sheet'!S18 -> 400 | R18: ='Input Sheet'!T18 -> 20 | S18: 400 | T18: 20 | U18: 2
A19: 188361 | B19: 2015 | C19: CAMRY | D19: 43270 | E19: ='Input Sheet'!G19 -> 1764 | F19: ='Input Sheet'!H19 -> 42 | G19: ='Input Sheet'!I19 -> 1764 | H19: ='Input Sheet'!J19 -> 42 | I19: 1764 | J19: 42 | K19: 0.6 | L19: ='Input Sheet'!I19 -> 1764 | M19: ='Input Sheet'!J19 -> 42 | N19: 25.2 | O19: ='Input Sheet'!Q19 -> 5176.8025 | P19: ='Input Sheet'!R19 -> 71.95 | Q19: ='Input Sheet'!S19 -> 5176.8025 | R19: ='Input Sheet'!T19 -> 71.95 | S19: 5176.8025 | T19: 71.95 | U19: 1
A20: 188362 | B20: 2012 | C20: CAMRY | D20: 100597 | E20: ='Input Sheet'!G20 -> 400 | F20: ='Input Sheet'!H20 -> 20 | G20: ='Input Sheet'!I20 -> 400 | H20: ='Input Sheet'!J20 -> 20 | I20: 400 | J20: 20 | K20: 0.4 | L20: ='Input Sheet'!I20 -> 400 | M20: ='Input Sheet'!J20 -> 20 | N20: 8 | O20: ='Input Sheet'!Q20 -> 400 | P20: ='Input Sheet'!R20 -> 20 | Q20: ='Input Sheet'!S20 -> 400 | R20: ='Input Sheet'!T20 -> 20 | S20: 400 | T20: 20 | U20: 1
A21: 188364 | B21: 2008 | C21: FJ CRUSIER | D21: 116692 | E21: ='Input Sheet'!G21 -> 400 | F21: ='Input Sheet'!H21 -> 20 | G21: ='Input Sheet'!I21 -> 400 | H21: ='Input Sheet'!J21 -> 20 | I21: 400 | J21: 20 | K21: 0.4 | L21: ='Input Sheet'!I21 -> 400 | M21: ='Input Sheet'!J21 -> 20 | N21: 8 | O21: ='Input Sheet'!Q21 -> 1844.7025 | P21: ='Input Sheet'!R21 -> 42.95 | Q21: ='Input Sheet'!S21 -> 1844.7025 | R21: ='Input Sheet'!T21 -> 42.95 | S21: 1844.7025 | T21: 42.95 | U21: 1
A22: 188366 | B22: 2013 | C22: PRIUS | D22: 96180 | E22: ='Input Sheet'!G22 -> 400 | F22: ='Input Sheet'!H22 -> 20 | G22: ='Input Sheet'!I22 -> 400 | H22: ='Input Sheet'!J22 -> 20 | I22: 400 | J22: 20 | K22: 0.4 | L22: ='Input Sheet'!I22 -> 400 | M22: ='Input Sheet'!J22 -> 20 | N22: 8 | O22: ='Input Sheet'!Q22 -> 2495.0025 | P22: ='Input Sheet'!R22 -> 49.95 | Q22: ='Input Sheet'!S22 -> 2495.0025 | R22: ='Input Sheet'!T22 -> 49.95 | S22: 2495.0025 | T22: 49.95 | U22: 1
A23: 188367 | B23: 2014 | C23: TACOMA | D23: 53420 | E23: ='Input Sheet'!G23 -> 400 | F23: ='Input Sheet'!H23 -> 20 | G23: ='Input Sheet'!I23 -> 400 | H23: ='Input Sheet'!J23 -> 20 | I23: 400 | J23: 20 | K23: 0.4 | L23: ='Input Sheet'!I23 -> 400 | M23: ='Input Sheet'!J23 -> 20 | N23: 8 | O23: ='Input Sheet'!Q23 -> 3019.5025 | P23: ='Input Sheet'!R23 -> 54.95 | Q23: ='Input Sheet'!S23 -> 3019.5025 | R23: ='Input Sheet'!T23 -> 54.95 | S23: 3019.5025 | T23: 54.95 | U23: 3
A24: 188369 | B24: 2012 | C24: SCION XB | D24: 56386 | E24: ='Input Sheet'!G24 -> 400 | F24: ='Input Sheet'!H24 -> 20 | G24: ='Input Sheet'!I24 -> 400 | H24: ='Input Sheet'!J24 -> 20 | I24: 400 | J24: 20 | K24: 0.4 | L24: ='Input Sheet'!I24 -> 400 | M24: ='Input Sheet'!J24 -> 20 | N24: 8 | O24: ='Input Sheet'!Q24 -> 1596.0025 | P24: ='Input Sheet'!R24 -> 39.95 | Q24: ='Input Sheet'!S24 -> 1596.0025 | R24: ='Input Sheet'!T24 -> 39.95 | S24: 1596.0025 | T24: 39.95 | U24: 1
A25: 188370 | B25: 2011 | C25: COROLLA | D25: 93014 | E25: ='Input Sheet'!G25 -> 100 | F25: ='Input Sheet'!H25 -> 10 | G25: ='Input Sheet'!I25 -> 100 | H25: ='Input Sheet'!J25 -> 10 | I25: 100 | J25: 10 | K25: 0.4 | L25: ='Input Sheet'!I25 -> 100 | M25: ='Input Sheet'!J25 -> 10 | N25: 4 | O25: ='Input Sheet'!Q25 -> 2495.0025 | P25: ='Input Sheet'!R25 -> 49.95 | Q25: ='Input Sheet'!S25 -> 2495.0025 | R25: ='Input Sheet'!T25 -> 49.95 | S25: 2495.0025 | T25: 49.95 | U25: 1
A26: 188371 | B26: 2015 | C26: CAMRY | D26: 53107 | E26: ='Input Sheet'!G26 -> 100 | F26: ='Input Sheet'!H26 -> 10 | G26: ='Input Sheet'!I26 -> 100 | H26: ='Input Sheet'!J26 -> 10 | I26: 100 | J26: 10 | K26: 0.4 | L26: ='Input Sheet'!I26 -> 100 | M26: ='Input Sheet'!J26 -> 10 | N26: 4 | O26: ='Input Sheet'!Q26 -> 2495.0025 | P26: ='Input Sheet'!R26 -> 49.95 | Q26: ='Input Sheet'!S26 -> 2495.0025 | R26: ='Input Sheet'!T26 -> 49.95 | S26: 2495.0025 | T26: 49.95 | U26: 1
A27: 188372 | B27: 2009 | C27: AVALON | D27: 183323 | E27: 89.95 | F27: 1.2 | G27: ='Input Sheet'!I27 -> 0 | H27: ='Input Sheet'!J27 ->  | J27: ='Input Sheet'!L27 -> 0 | K27: ='Input Sheet'!M27 -> 0 | L27: ='Input Sheet'!I27 -> 0 | M27: ='Input Sheet'!J27 ->  | O27: ='Input Sheet'!Q27 -> 8091.0025 | P27: ='Input Sheet'!R27 -> 89.95 | Q27: ='Input Sheet'!S27 -> 8091.0025 | R27: ='Input Sheet'!T27 -> 89.95 | S27: 8091.0025 | T27: 89.95 | U27: 1
A28: 188373 | B28: 2011 | C28: CAMRY | D28: 72797 | E28: 89.95 | F28: 1.2 | G28: ='Input Sheet'!I28 -> 0 | H28: ='Input Sheet'!J28 ->  | J28: ='Input Sheet'!L28 -> 0 | K28: ='Input Sheet'!M28 -> 0 | L28: ='Input Sheet'!I28 -> 0 | M28: ='Input Sheet'!J28 ->  | O28: ='Input Sheet'!Q28 -> 8091.0025 | P28: ='Input Sheet'!R28 -> 89.95 | Q28: ='Input Sheet'!S28 -> 8091.0025 | R28: ='Input Sheet'!T28 -> 89.95 | S28: 8091.0025 | T28: 89.95 | U28: 1
A29: 188375 | B29: 1997 | C29: 4 RUNNER | D29: 182844 | E29: ='Input Sheet'!G29 -> 400 | F29: ='Input Sheet'!H29 -> 20 | G29: ='Input Sheet'!I29 -> 400 | H29: ='Input Sheet'!J29 -> 20 | I29: 400 | J29: 20 | K29: 0.4 | L29: ='Input Sheet'!I29 -> 400 | M29: ='Input Sheet'!J29 -> 20 | N29: 8 | O29: ='Input Sheet'!Q29 -> 2111.4025 | P29: ='Input Sheet'!R29 -> 45.95 | Q29: ='Input Sheet'!S29 -> 2111.4025 | R29: ='Input Sheet'!T29 -> 45.95 | S29: 2111.4025 | T29: 45.95 | U29: 1
A30: 188383 | B30: 2007 | C30: CAMRY | D30: 163777 | E30: ='Input Sheet'!G30 -> 400 | F30: ='Input Sheet'!H30 -> 20 | G30: ='Input Sheet'!I30 -> 400 | H30: ='Input Sheet'!J30 -> 20 | I30: 400 | J30: 20 | K30: 0.4 | L30: ='Input Sheet'!I30 -> 400 | M30: ='Input Sheet'!J30 -> 20 | N30: 8 | O30: ='Input Sheet'!Q30 -> 1596.0025 | P30: ='Input Sheet'!R30 -> 39.95 | Q30: ='Input Sheet'!S30 -> 1596.0025 | R30: ='Input Sheet'!T30 -> 39.95 | S30: 1596.0025 | T30: 39.95 | U30: 1
A31: 188384 | B31: 2016 | C31: RAV 4 | D31: 76906 | E31: 28.95 | F31: 0.21 | G31: ='Input Sheet'!I31 -> 0 | H31: ='Input Sheet'!J31 ->  | J31: ='Input Sheet'!L31 -> 0 | K31: ='Input Sheet'!M31 -> 0 | L31: ='Input Sheet'!I31 -> 0 | M31: ='Input Sheet'!J31 ->  | O31: ='Input Sheet'!Q31 -> 838.1025 | P31: ='Input Sheet'!R31 -> 28.95 | Q31: ='Input Sheet'!S31 -> 838.1025 | R31: ='Input Sheet'!T31 -> 28.95 | S31: 838.1025 | T31: 28.95 | U31: 2
A32: 188385 | B32: 2013 | C32: COROLLA | D32: 67773 | E32: ='Input Sheet'!G32 -> 400 | F32: ='Input Sheet'!H32 -> 20 | G32: ='Input Sheet'!I32 -> 400 | H32: ='Input Sheet'!J32 -> 20 | I32: 400 | J32: 20 | K32: 0.4 | L32: ='Input Sheet'!I32 -> 400 | M32: ='Input Sheet'!J32 -> 20 | N32: 8 | O32: ='Input Sheet'!Q32 -> 2495.0025 | P32: ='Input Sheet'!R32 -> 49.95 | Q32: ='Input Sheet'!S32 -> 2495.0025 | R32: ='Input Sheet'!T32 -> 49.95 | S32: 2495.0025 | T32: 49.95 | U32: 1
A33: 188387C | B33: 2016 | C33: HIGHLANDWE | D33: 32604 | E33: 89.95 | F33: 1.2 | G33: ='Input Sheet'!I33 -> 0 | H33: ='Input Sheet'!J33 ->  | J33: ='Input Sheet'!L33 -> 0 | K33: ='Input Sheet'!M33 -> 0 | L33: ='Input Sheet'!I33 -> 0 | M33: ='Input Sheet'!J33 ->  | O33: ='Input Sheet'!Q33 -> 8091.0025 | P33: ='Input Sheet'!R33 -> 89.95 | Q33: ='Input Sheet'!S33 -> 8091.0025 | R33: ='Input Sheet'!T33 -> 89.95 | S33: 8091.0025 | T33: 89.95 | U33: 1
A34: 188388 | B34: 2003 | C34: SEQUOIA | D34: 61036 | E34: ='Input Sheet'!G34 -> 400 | F34: ='Input Sheet'!H34 -> 20 | G34: ='Input Sheet'!I34 -> 400 | H34: ='Input Sheet'!J34 -> 20 | I34: 400 | J34: 20 | K34: 0.4 | L34: ='Input Sheet'!I34 -> 400 | M34: ='Input Sheet'!J34 -> 20 | N34: 8 | O34: ='Input Sheet'!Q34 -> 2111.4025 | P34: ='Input Sheet'!R34 -> 45.95 | Q34: ='Input Sheet'!S34 -> 2111.4025 | R34: ='Input Sheet'!T34 -> 45.95 | S34: 2111.4025 | T34: 45.95 | U34: 1
A35: 188390 | B35: 2005 | C35: CAMRY | D35: 223961 | E35: 64.31 | F35: 0.7 | G35: ='Input Sheet'!I35 -> 0 | H35: ='Input Sheet'!J35 ->  | J35: ='Input Sheet'!L35 -> 0 | K35: ='Input Sheet'!M35 -> 0 | L35: ='Input Sheet'!I35 -> 0 | M35: ='Input Sheet'!J35 ->  | O35: ='Input Sheet'!Q35 -> 14871.8025 | P35: ='Input Sheet'!R35 -> 121.95 | Q35: ='Input Sheet'!S35 -> 14871.8025 | R35: ='Input Sheet'!T35 -> 121.95 | S35: 14871.8025 | T35: 121.95 | U35: 5
A36: 188391 | B36: 2016 | C36: CAMRY | D36: 30395 | E36: 15 | F36: 0.4 | G36: ='Input Sheet'!I36 -> 0 | H36: ='Input Sheet'!J36 ->  | J36: ='Input Sheet'!L36 -> 0 | K36: ='Input Sheet'!M36 -> 0 | L36: ='Input Sheet'!I36 -> 0 | M36: ='Input Sheet'!J36 ->  | O36: ='Input Sheet'!Q36 -> 1288.81 | P36: ='Input Sheet'!R36 -> 35.9 | Q36: ='Input Sheet'!S36 -> 1288.81 | R36: ='Input Sheet'!T36 -> 35.9 | S36: 1288.81 | T36: 35.9 | U36: 1
A37: 188392 | B37: 2013 | C37: AVALON | D37: 66748 | E37: 22.99 | F37: 0.3 | G37: ='Input Sheet'!I37 -> 0 | H37: ='Input Sheet'!J37 ->  | J37: ='Input Sheet'!L37 -> 0 | K37: ='Input Sheet'!M37 -> 0 | L37: ='Input Sheet'!I37 -> 0 | M37: ='Input Sheet'!J37 ->  | O37: ='Input Sheet'!Q37 -> 528.5401 | P37: ='Input Sheet'!R37 -> 22.99 | Q37: ='Input Sheet'!S37 -> 528.5401 | R37: ='Input Sheet'!T37 -> 22.99 | S37: 528.5401 | T37: 22.99 | U37: 1
A38: 188393 | B38: 2008 | C38: CAMRY HYBRID | D38: 80067 | E38: ='Input Sheet'!G38 -> 400 | F38: ='Input Sheet'!H38 -> 20 | G38: ='Input Sheet'!I38 -> 400 | H38: ='Input Sheet'!J38 -> 20 | I38: 400 | J38: 20 | K38: 0.4 | L38: ='Input Sheet'!I38 -> 400 | M38: ='Input Sheet'!J38 -> 20 | N38: 8 | O38: ='Input Sheet'!Q38 -> 1596.0025 | P38: ='Input Sheet'!R38 -> 39.95 | Q38: ='Input Sheet'!S38 -> 1596.0025 | R38: ='Input Sheet'!T38 -> 39.95 | S38: 1596.0025 | T38: 39.95 | U38: 2
A39: 188394 | B39: 2007 | C39: COROLLA | D39: 187558 | E39: ='Input Sheet'!G39 -> 1764 | F39: ='Input Sheet'!H39 -> 42 | G39: ='Input Sheet'!I39 -> 1764 | H39: ='Input Sheet'!J39 -> 42 | I39: 1764 | J39: 42 | K39: 0.6 | L39: ='Input Sheet'!I39 -> 1764 | M39: ='Input Sheet'!J39 -> 42 | N39: 25.2 | O39: ='Input Sheet'!Q39 -> 3794.56 | P39: ='Input Sheet'!R39 -> 61.6 | Q39: ='Input Sheet'!S39 -> 3794.56 | R39: ='Input Sheet'!T39 -> 61.6 | S39: 3794.56 | T39: 61.6 | U39: 3
A40: 188395 | B40: 2013 | C40: CAMRY | D40: 54949 | E40: ='Input Sheet'!G40 -> 400 | F40: ='Input Sheet'!H40 -> 20 | G40: ='Input Sheet'!I40 -> 400 | H40: ='Input Sheet'!J40 -> 20 | I40: 400 | J40: 20 | K40: 0.4 | L40: ='Input Sheet'!I40 -> 400 | M40: ='Input Sheet'!J40 -> 20 | N40: 8 | O40: ='Input Sheet'!Q40 -> 1221.5025 | P40: ='Input Sheet'!R40 -> 34.95 | Q40: ='Input Sheet'!S40 -> 1221.5025 | R40: ='Input Sheet'!T40 -> 34.95 | S40: 1221.5025 | T40: 34.95 | U40: 2
A41: 188398 | B41: 2009 | C41: TUNDRA | D41: 88510 | E41: ='Input Sheet'!G41 -> 400 | F41: ='Input Sheet'!H41 -> 20 | G41: ='Input Sheet'!I41 -> 400 | H41: ='Input Sheet'!J41 -> 20 | I41: 400 | J41: 20 | K41: 0.4 | L41: ='Input Sheet'!I41 -> 400 | M41: ='Input Sheet'!J41 -> 20 | N41: 8 | O41: ='Input Sheet'!Q41 -> 2111.4025 | P41: ='Input Sheet'!R41 -> 45.95 | Q41: ='Input Sheet'!S41 -> 2111.4025 | R41: ='Input Sheet'!T41 -> 45.95 | S41: 2111.4025 | T41: 45.95 | U41: 1
A42: 188399 | B42: 2009 | C42: LEXUS | D42: 121680 | E42: ='Input Sheet'!G42 -> 400 | F42: ='Input Sheet'!H42 -> 20 | G42: ='Input Sheet'!I42 -> 400 | H42: ='Input Sheet'!J42 -> 20 | I42: 400 | J42: 20 | K42: 0.4 | L42: ='Input Sheet'!I42 -> 400 | M42: ='Input Sheet'!J42 -> 20 | N42: 8 | O42: ='Input Sheet'!Q42 -> 2111.4025 | P42: ='Input Sheet'!R42 -> 45.95 | Q42: ='Input Sheet'!S42 -> 2111.4025 | R42: ='Input Sheet'!T42 -> 45.95 | S42: 2111.4025 | T42: 45.95 | U42: 1
A43: 188400 | B43: 2008 | C43: LEXUS | D43: 134079 | E43: ='Input Sheet'!G43 -> 400 | F43: ='Input Sheet'!H43 -> 20 | G43: ='Input Sheet'!I43 -> 400 | H43: ='Input Sheet'!J43 -> 20 | I43: 400 | J43: 20 | K43: 0.4 | L43: ='Input Sheet'!I43 -> 400 | M43: ='Input Sheet'!J43 -> 20 | N43: 8 | O43: ='Input Sheet'!Q43 -> 2860.1104 | P43: ='Input Sheet'!R43 -> 53.48 | Q43: ='Input Sheet'!S43 -> 2860.1104 | R43: ='Input Sheet'!T43 -> 53.48 | S43: 2860.1104 | T43: 53.48 | U43: 1
A44: 188401 | B44: 2016 | C44: SCION IM | D44: 44851 | E44: ='Input Sheet'!G44 -> 0 | F44: ='Input Sheet'!H44 -> 0 | G44: ='Input Sheet'!I44 -> 0 | H44: ='Input Sheet'!J44 ->  | J44: ='Input Sheet'!L44 -> 0 | K44: ='Input Sheet'!M44 -> 0 | L44: ='Input Sheet'!I44 -> 0 | M44: ='Input Sheet'!J44 ->  | O44: 159.99 | P44: 2 | Q44: ='Input Sheet'!S44 -> 429.98 | R44: ='Input Sheet'!T44 -> 214.99 | S44: 429.98 | T44: 214.99 | U44: 1
A45: 188402 | B45: 2016 | C45: TACOMA | D45: 36943 | E45: ='Input Sheet'!G45 -> 484 | F45: ='Input Sheet'!H45 -> 22 | G45: ='Input Sheet'!I45 -> 484 | H45: ='Input Sheet'!J45 -> 22 | I45: 484 | J45: 22 | K45: 0.6 | L45: ='Input Sheet'!I45 -> 484 | M45: ='Input Sheet'!J45 -> 22 | N45: 13.2 | O45: ='Input Sheet'!Q45 -> 2124.2881 | P45: ='Input Sheet'!R45 -> 46.09 | Q45: ='Input Sheet'!S45 -> 2124.2881 | R45: ='Input Sheet'!T45 -> 46.09 | S45: 2124.2881 | T45: 46.09 | U45: 1
A46: 188404 | B46: 2011 | C46: COROLLA | D46: 50202 | E46: ='Input Sheet'!G46 -> 400 | F46: ='Input Sheet'!H46 -> 20 | G46: ='Input Sheet'!I46 -> 400 | H46: ='Input Sheet'!J46 -> 20 | I46: 400 | J46: 20 | K46: 0.4 | L46: ='Input Sheet'!I46 -> 400 | M46: ='Input Sheet'!J46 -> 20 | N46: 8 | O46: ='Input Sheet'!Q46 -> 1596.0025 | P46: ='Input Sheet'!R46 -> 39.95 | Q46: ='Input Sheet'!S46 -> 1596.0025 | R46: ='Input Sheet'!T46 -> 39.95 | S46: 1596.0025 | T46: 39.95 | U46: 1
A47: 188405 | B47: 2008 | C47: LEXUS | D47: 76407 | E47: ='Input Sheet'!G47 -> 400 | F47: ='Input Sheet'!H47 -> 20 | G47: ='Input Sheet'!I47 -> 400 | H47: ='Input Sheet'!J47 -> 20 | I47: 400 | J47: 20 | K47: 0.4 | L47: ='Input Sheet'!I47 -> 400 | M47: ='Input Sheet'!J47 -> 20 | N47: 8 | O47: ='Input Sheet'!Q47 -> 2396.1025 | P47: ='Input Sheet'!R47 -> 48.95 | Q47: ='Input Sheet'!S47 -> 2396.1025 | R47: ='Input Sheet'!T47 -> 48.95 | S47: 2396.1025 | T47: 48.95 | U47: 1
A48: 188407 | B48: 2014 | C48: CAMRY | D48: 55017 | E48: 90.29 | F48: 1 | G48: ='Input Sheet'!I48 -> 0 | H48: ='Input Sheet'!J48 ->  | J48: ='Input Sheet'!L48 -> 0 | K48: ='Input Sheet'!M48 -> 0 | L48: ='Input Sheet'!I48 -> 0 | M48: ='Input Sheet'!J48 ->  | O48: ='Input Sheet'!Q48 -> 19897.9236 | P48: ='Input Sheet'!R48 -> 141.06 | Q48: ='Input Sheet'!S48 -> 19897.9236 | R48: ='Input Sheet'!T48 -> 141.06 | S48: 19897.9236 | T48: 141.06 | U48: 1
A49: 188409 | B49: 2002 | C49: HIGHLANDER | D49: 235329 | E49: ='Input Sheet'!G49 -> 400 | F49: ='Input Sheet'!H49 -> 20 | G49: ='Input Sheet'!I49 -> 400 | H49: ='Input Sheet'!J49 -> 20 | I49: 400 | J49: 20 | K49: 0.4 | L49: ='Input Sheet'!I49 -> 400 | M49: ='Input Sheet'!J49 -> 20 | N49: 8 | O49: ='Input Sheet'!Q49 -> 2202.4249 | P49: ='Input Sheet'!R49 -> 46.93 | Q49: ='Input Sheet'!S49 -> 2202.4249 | R49: ='Input Sheet'!T49 -> 46.93 | S49: 2202.4249 | T49: 46.93 | U49: 1
A50: 188411 | B50: 2013 | C50: TACOMA | D50: 70174 | E50: 138 | F50: 1.5 | G50: ='Input Sheet'!I50 -> 0 | H50: ='Input Sheet'!J50 ->  | J50: ='Input Sheet'!L50 -> 0 | K50: ='Input Sheet'!M50 -> 0 | L50: ='Input Sheet'!I50 -> 0 | M50: ='Input Sheet'!J50 ->  | O50: ='Input Sheet'!Q50 -> 69142.7025 | P50: ='Input Sheet'!R50 -> 262.95 | Q50: ='Input Sheet'!S50 -> 69142.7025 | R50: ='Input Sheet'!T50 -> 262.95 | S50: 69142.7025 | T50: 262.95 | U50: 3
A51: 188412 | B51: 2015 | C51: CAMRY | D51: 52290 | E51: ='Input Sheet'!G51 -> 0 | F51: ='Input Sheet'!H51 -> 20 | G51: ='Input Sheet'!I51 -> 0 | H51: ='Input Sheet'!J51 -> 20 | I51: =F55*H51 -> 0 | J51: 20 | K51: 0.4 | L51: ='Input Sheet'!I51 -> 0 | M51: ='Input Sheet'!J51 -> 20 | N51: 8 | O51: ='Input Sheet'!Q51 -> 2495.0025 | P51: ='Input Sheet'!R51 -> 49.95 | Q51: ='Input Sheet'!S51 -> 2495.0025 | R51: ='Input Sheet'!T51 -> 49.95 | S51: 2495.0025 | T51: 49.95 | U51: 1
A52: 188413C | B52: 2016 | C52: CAMRY | D52: 40114 | E52: 119.99 | F52: 1.2 | G52: ='Input Sheet'!I99 -> 0 | H52: ='Input Sheet'!J99 -> 0 | I52: 0 | J52: ='Input Sheet'!L52 -> 0 | K52: ='Input Sheet'!M52 -> 0 | L52: ='Input Sheet'!I99 -> 0 | M52: ='Input Sheet'!J99 -> 0 | N52: 0 | O52: ='Input Sheet'!Q52 -> 0 | P52: ='Input Sheet'!R52 -> 247.6 | Q52: ='Input Sheet'!S99 -> 0 | R52: ='Input Sheet'!T99 -> 0 | S52: 0 | T52: 119.99 | U52: 2
A53: 188414 | B53: 2011 | C53: AVALON | D53: 60096 | E53: ='Input Sheet'!G53 -> 0 | F53: ='Input Sheet'!H53 -> 20 | G53: ='Input Sheet'!I100 -> 0 | H53: ='Input Sheet'!J100 -> 0 | I53: 0 | J53: 20 | K53: 0.4 | L53: ='Input Sheet'!I100 -> 0 | M53: ='Input Sheet'!J100 -> 0 | N53: 0 | O53: ='Input Sheet'!Q53 -> 0 | P53: ='Input Sheet'!R53 -> 49.95 | Q53: ='Input Sheet'!S100 -> 0 | R53: ='Input Sheet'!T100 -> 0 | S53: 0 | T53: 45.95 | U53: 1
A54: 188415 | B54: 2016 | C54: COROLLA | D54: 18472 | E54: ='Input Sheet'!G54 -> 0 | F54: ='Input Sheet'!H54 -> 20 | G54: ='Input Sheet'!I101 -> 0 | H54: ='Input Sheet'!J101 -> 0 | I54: =F54*H54 -> 0 | J54: ='Input Sheet'!L54 -> 0 | K54: 0.5 | L54: ='Input Sheet'!I101 -> 0 | M54: ='Input Sheet'!J101 -> 0 | N54: =K54*M54 -> 0 | O54: ='Input Sheet'!Q54 -> 0 | P54: ='Input Sheet'!R54 -> 49.95 | Q54: ='Input Sheet'!S101 -> 0 | R54: ='Input Sheet'!T101 -> 0 | S54: =P54*R54 -> 0 | T54: ='Input Sheet'!V54 -> 0 | U54: 1
A55: 188416 | B55: 2008 | C55: CAMRY | D55: 82297 | E55: ='Input Sheet'!G55 -> 0 | F55: ='Input Sheet'!H55 -> 0 | G55: ='Input Sheet'!I105 -> 0 | H55: ='Input Sheet'!J105 -> 0 | I55: =#REF!*H55 ->  | J55: ='Input Sheet'!L55 -> 0 | K55: ='Input Sheet'!M55 -> 0 | L55: ='Input Sheet'!I105 -> 0 | M55: ='Input Sheet'!J105 -> 0 | N55: 0 | O55: 119.99 | P55: 1 | Q55: ='Input Sheet'!S105 -> 0 | R55: ='Input Sheet'!T105 -> 0 | S55: 0 | T55: 236.11 | U55: 1
A56: RO's 1-50 | D56: Totals | E56: =SUM(E6:E55) -> 1679.16 | F56: =SUM(F6:F55) -> 34.66 | I56: =SUM(I6:I55) ->  | J56: 660.95 | K56: 13.49 | L56: 400 | M56: 20 | O56: =SUM(O6:O55) -> 239290.8471 | P56: 2941.85 | S56: 239707.8571 | T56: 3347.24 | U56: =COUNTIF(U5:U55,1) -> 37
A57: Date of Study: | E57: C Labor | J57: M Labor | O57: R Labor | T57: Total Cost of Labor | U57: One Item Repair Order
A58: Study Compiled by | E58: Labor Sales | F58: Flat Rate Hours | G58: Technician Number | H58: Pay Per FRH | I58: Labor Cost | J58: Labor Sales | K58: Flat Rate Hours | L58: Technician Number | M58: Pay Per FRH | N58: Labor Cost | O58: Labor Sales | P58: Flat Rate Hours | Q58: Technician Number | R58: Pay Per FRH | S58: Labor Cost
T65: `

Sheet RO Report 51-100
A1: Repair Order Analysis
E2: Competitive Labor | J2: Maintenance Labor | O2: Repair Labor
A3: Dealership | T3: Total Cost of Labor | U3: One Item Repair Order
A4: RO Number | E4: Labor Sales | F4: Flat Rate Hours | G4: Technician Number | H4: Pay Per FRH | I4: Labor Cost | J4: Labor Sales | K4: Flat Rate Hours | L4: Technician Number | M4: Pay Per FRH | N4: Labor Cost | O4: Labor Sales | P4: Flat Rate Hours | Q4: Technician Number | R4: Pay Per FRH | S4: Labor Cost
B5: Year | C5: Model | D5: Mileage
A6: 188417 | B6: 2011 | C6: CAMRY | D6: 123056 | E6: ='Input Sheet'!G56 -> 0 | F6: ='Input Sheet'!H56 -> 0 | G6: ='Input Sheet'!I56 -> 0 | H6: ='Input Sheet'!J56 ->  | I6: =F6*H6 ->  | J6: 20 | K6: 0.4 | L6: ='Input Sheet'!N56 -> 0 | M6: ='Input Sheet'!O56 -> 239617.3271 | N6: =K6*M6 -> 95846.93084 | O6: ='Input Sheet'!Q56 -> 0 | P6: ='Input Sheet'!R56 -> 0 | Q6: ='Input Sheet'!S56 ->  | R6: ='Input Sheet'!T56 -> 7700.14 | S6: =P6*R6 -> 0 | T6: 49.95 | U6: 2
A7: 188418 | B7: 2014 | C7: CAMRY | D7: 49844 | E7: ='Input Sheet'!G57 -> 0 | F7: ='Input Sheet'!H57 -> 0 | G7: ='Input Sheet'!I57 -> 0 | H7: ='Input Sheet'!J57 -> Maintenance Labor | J7: 42 | K7: 0.6 | L7: ='Input Sheet'!N57 -> 0 | M7: ='Input Sheet'!O57 -> Repair Labor | O7: ='Input Sheet'!Q57 -> 0 | P7: ='Input Sheet'!R57 -> 0 | Q7: ='Input Sheet'!S57 -> 0 | R7: ='Input Sheet'!T57 -> Total Cost of Labor | T7: 71.95 | U7: 1
A8: 188419 | B8: 2016 | C8: PRIUS | D8: 35479 | E8: 22.99 | F8: 0.3 | G8: ='Input Sheet'!I58 -> Labor Cost | H8: ='Input Sheet'!J58 -> Labor Sales | J8: ='Input Sheet'!L58 -> Technican Number | K8: ='Input Sheet'!M58 -> Pay Per FRH | L8: ='Input Sheet'!N58 -> Labor Cost | M8: ='Input Sheet'!O58 -> Labor Sales | O8: ='Input Sheet'!Q58 -> Technican Number | P8: ='Input Sheet'!R58 -> Pay Per FRH | Q8: ='Input Sheet'!S58 -> Labor Cost | R8: ='Input Sheet'!T58 -> 0 | T8: 25.12 | U8: 1
A9: 188420 | B9: 2015 | C9: COROLLA | D9: 63436 | E9: ='Input Sheet'!G59 -> 0 | F9: ='Input Sheet'!H59 -> 0 | G9: ='Input Sheet'!I59 -> 0 | H9: ='Input Sheet'!J59 -> 0 | I9: 0 | J9: 20 | K9: 0.4 | L9: ='Input Sheet'!N59 -> 0 | M9: ='Input Sheet'!O59 -> 0 | N9: 0 | O9: ='Input Sheet'!Q59 -> 0 | P9: ='Input Sheet'!R59 -> 0 | Q9: ='Input Sheet'!S59 -> 0 | R9: ='Input Sheet'!T59 -> 0 | S9: 0 | T9: 40.9 | U9: 1
A10: 188422 | B10: 2017 | C10: CAMRY | D10: 31732 | E10: 22 | F10: 0.3 | G10: ='Input Sheet'!I60 -> 0 | H10: ='Input Sheet'!J60 -> 0 | I10: 0 | J10: ='Input Sheet'!L60 -> 0 | K10: ='Input Sheet'!M60 -> 0 | L10: ='Input Sheet'!N60 -> 0 | M10: ='Input Sheet'!O60 -> 0 | N10: 0 | O10: ='Input Sheet'!Q60 -> 0 | P10: ='Input Sheet'!R60 -> 0 | Q10: ='Input Sheet'!S60 -> 0 | R10: ='Input Sheet'!T60 -> 0 | S10: 0 | T10: 237.45 | U10: 1
A11: 188423 | B11: 2007 | C11: AVALON | D11: 120429 | E11: ='Input Sheet'!G61 -> 0 | F11: ='Input Sheet'!H61 -> 0 | G11: ='Input Sheet'!I61 -> 0 | H11: ='Input Sheet'!J61 -> 0 | I11: 0 | J11: 20 | K11: 0.4 | L11: ='Input Sheet'!N61 -> 0 | M11: ='Input Sheet'!O61 -> 0 | N11: 0 | O11: ='Input Sheet'!Q61 -> 0 | P11: ='Input Sheet'!R61 -> 0 | Q11: ='Input Sheet'!S61 -> 0 | R11: ='Input Sheet'!T61 -> 0 | S11: 0 | T11: 42.95 | U11: 1
A12: 188424C | B12: 2009 | C12: COROLLA | D12: 100958 | E12: 119.99 | F12: 1 | G12: ='Input Sheet'!I62 -> 0 | H12: ='Input Sheet'!J62 -> 0 | I12: 0 | J12: ='Input Sheet'!L62 -> 0 | K12: ='Input Sheet'!M62 -> 0 | L12: ='Input Sheet'!N62 -> 0 | M12: ='Input Sheet'!O62 -> 0 | N12: 0 | O12: ='Input Sheet'!Q62 -> 0 | P12: ='Input Sheet'!R62 -> 0 | Q12: ='Input Sheet'!S62 -> 0 | R12: ='Input Sheet'!T62 -> 0 | S12: 0 | T12: 131.09 | U12: 1
A13: 188425 | B13: 2013 | C13: HIGHLANDER | D13: 60836 | E13: ='Input Sheet'!G63 -> 0 | F13: ='Input Sheet'!H63 -> 0 | G13: ='Input Sheet'!I63 -> 0 | H13: ='Input Sheet'!J63 -> 0 | I13: 0 | J13: 42 | K13: 0.6 | L13: ='Input Sheet'!N63 -> 0 | M13: ='Input Sheet'!O63 -> 0 | N13: 0 | O13: ='Input Sheet'!Q63 -> 0 | P13: ='Input Sheet'!R63 -> 0 | Q13: ='Input Sheet'!S63 -> 0 | R13: ='Input Sheet'!T63 -> 0 | S13: 0 | T13: 76.95 | U13: 1
A14: 188426 | B14: 2014 | C14: COROLLA | D14: 89057 | E14: ='Input Sheet'!G64 -> 0 | F14: ='Input Sheet'!H64 -> 0 | G14: ='Input Sheet'!I64 -> 0 | H14: ='Input Sheet'!J64 -> 0 | I14: 0 | J14: 42 | K14: 0.6 | L14: ='Input Sheet'!N64 -> 0 | M14: ='Input Sheet'!O64 -> 0 | N14: 0 | O14: ='Input Sheet'!Q64 -> 0 | P14: ='Input Sheet'!R64 -> 0 | Q14: ='Input Sheet'!S64 -> 0 | R14: ='Input Sheet'!T64 -> 0 | S14: 0 | T14: 83.65 | U14: 1
A15: 188427 | B15: 2004 | C15: CAMRY | D15: 105362 | E15: ='Input Sheet'!G65 -> 0 | F15: ='Input Sheet'!H65 -> 0 | G15: ='Input Sheet'!I65 -> 0 | H15: ='Input Sheet'!J65 -> 0 | I15: 0 | J15: 20 | K15: 0.4 | L15: ='Input Sheet'!N65 -> 0 | M15: ='Input Sheet'!O65 -> 0 | N15: 0 | O15: ='Input Sheet'!Q65 -> 0 | P15: ='Input Sheet'!R65 -> 0 | Q15: ='Input Sheet'!S65 -> 0 | R15: ='Input Sheet'!T65 -> 0 | S15: 0 | T15: 49.95 | U15: 5
A16: 188428 | B16: 2015 | C16: RAV4 | D16: 25629 | E16: 22.99 | F16: 0.3 | G16: ='Input Sheet'!I66 -> 0 | H16: ='Input Sheet'!J66 -> 0 | I16: 0 | J16: ='Input Sheet'!L66 -> 0 | K16: ='Input Sheet'!M66 -> 0 | L16: ='Input Sheet'!N66 -> 0 | M16: ='Input Sheet'!O66 -> 0 | N16: 0 | O16: ='Input Sheet'!Q66 -> 0 | P16: ='Input Sheet'!R66 -> 0 | Q16: ='Input Sheet'!S66 -> 0 | R16: ='Input Sheet'!T66 -> 0 | S16: 0 | T16: 56.75 | U16: 2
A17: 188429 | B17: 2013 | C17: RAV4 | D17: 74960 | E17: ='Input Sheet'!G67 -> 0 | F17: ='Input Sheet'!H67 -> 0 | G17: ='Input Sheet'!I67 -> 0 | H17: ='Input Sheet'!J67 -> 0 | I17: 0 | J17: 20 | K17: 0.4 | L17: ='Input Sheet'!N67 -> 0 | M17: ='Input Sheet'!O67 -> 0 | N17: 0 | O17: ='Input Sheet'!Q67 -> 0 | P17: ='Input Sheet'!R67 -> 0 | Q17: ='Input Sheet'!S67 -> 0 | R17: ='Input Sheet'!T67 -> 0 | S17: 0 | T17: 49.95 | U17: 1
A18: 188431C | B18: 2016 | C18: 4 RUNNER | D18: 33251 | E18: ='Input Sheet'!G68 -> 0 | F18: ='Input Sheet'!H68 -> 0 | G18: ='Input Sheet'!I68 -> 0 | H18: ='Input Sheet'!J68 -> 0 | I18: 0 | J18: ='Input Sheet'!L68 -> 0 | K18: ='Input Sheet'!M68 -> 0 | L18: ='Input Sheet'!N68 -> 0 | M18: ='Input Sheet'!O68 -> 0 | N18: 0 | O18: 22.99 | P18: 0.4 | Q18: ='Input Sheet'!S68 -> 0 | R18: ='Input Sheet'!T68 -> 0 | S18: 0 | T18: 25.12 | U18: 1
A19: 188432 | B19: 2013 | C19: AVALON | D19: 109905 | E19: ='Input Sheet'!G69 -> 0 | F19: ='Input Sheet'!H69 -> 0 | G19: ='Input Sheet'!I69 -> 0 | H19: ='Input Sheet'!J69 -> 0 | I19: 0 | J19: 20 | K19: 0.6 | L19: ='Input Sheet'!N69 -> 0 | M19: ='Input Sheet'!O69 -> 0 | N19: 0 | O19: ='Input Sheet'!Q69 -> 0 | P19: ='Input Sheet'!R69 -> 0 | Q19: ='Input Sheet'!S69 -> 0 | R19: ='Input Sheet'!T69 -> 0 | S19: 0 | T19: 30.54 | U19: 1
A20: 199434 | B20: 2004 | C20: AVALON | D20: 130944 | E20: 159.99 | F20: 2 | G20: ='Input Sheet'!I70 -> 0 | H20: ='Input Sheet'!J70 -> 0 | I20: 0 | J20: ='Input Sheet'!L70 -> 0 | K20: ='Input Sheet'!M70 -> 0 | L20: ='Input Sheet'!N70 -> 0 | M20: ='Input Sheet'!O70 -> 0 | N20: 0 | O20: ='Input Sheet'!Q70 -> 0 | P20: ='Input Sheet'!R70 -> 0 | Q20: ='Input Sheet'!S70 -> 0 | R20: ='Input Sheet'!T70 -> 0 | S20: 0 | T20: 374.99 | U20: 2
A21: 188436 | B21: 2008 | C21: AVALON | D21: 153451 | E21: ='Input Sheet'!G71 -> 0 | F21: ='Input Sheet'!H71 -> 0 | G21: ='Input Sheet'!I71 -> 0 | H21: ='Input Sheet'!J71 -> 0 | I21: 0 | J21: 20 | K21: 0.4 | L21: ='Input Sheet'!N71 -> 0 | M21: ='Input Sheet'!O71 -> 0 | N21: 0 | O21: ='Input Sheet'!Q71 -> 0 | P21: ='Input Sheet'!R71 -> 0 | Q21: ='Input Sheet'!S71 -> 0 | R21: ='Input Sheet'!T71 -> 0 | S21: 0 | T21: 45.95 | U21: 4
A22: 188437 | B22: 2004 | C22: CELICA | D22: 189908 | E22: 89.95 | F22: 1.2 | G22: ='Input Sheet'!I72 -> 0 | H22: ='Input Sheet'!J72 -> 0 | I22: 0 | J22: ='Input Sheet'!L72 -> 0 | K22: ='Input Sheet'!M72 -> 0 | L22: ='Input Sheet'!N72 -> 0 | M22: ='Input Sheet'!O72 -> 0 | N22: 0 | O22: ='Input Sheet'!Q72 -> 0 | P22: ='Input Sheet'!R72 -> 0 | Q22: ='Input Sheet'!S72 -> 0 | R22: ='Input Sheet'!T72 -> 0 | S22: 0 | T22: 89.95 | U22: 3
A23: 188438 | B23: 2001 | C23: LEXUS | D23: 63841 | E23: ='Input Sheet'!G73 -> 0 | F23: ='Input Sheet'!H73 -> 0 | G23: ='Input Sheet'!I73 -> 0 | H23: ='Input Sheet'!J73 -> 0 | I23: 0 | J23: 20 | K23: 0.4 | L23: ='Input Sheet'!N73 -> 0 | M23: ='Input Sheet'!O73 -> 0 | N23: 0 | O23: ='Input Sheet'!Q73 -> 0 | P23: ='Input Sheet'!R73 -> 0 | Q23: ='Input Sheet'!S73 -> 0 | R23: ='Input Sheet'!T73 -> 0 | S23: 0 | T23: 59.95 | U23: 1
A24: 188439 | B24: 2010 | C24: SCION XD | D24: 65478 | E24: 22.99 | F24: 0.3 | G24: ='Input Sheet'!I74 -> 0 | H24: ='Input Sheet'!J74 -> 0 | I24: 0 | J24: ='Input Sheet'!L74 -> 0 | K24: ='Input Sheet'!M74 -> 0 | L24: ='Input Sheet'!N74 -> 0 | M24: ='Input Sheet'!O74 -> 0 | N24: 0 | O24: ='Input Sheet'!Q74 -> 0 | P24: ='Input Sheet'!R74 -> 0 | Q24: ='Input Sheet'!S74 -> 0 | R24: ='Input Sheet'!T74 -> 0 | S24: 0 | T24: 25.12 | U24: 1
A25: 188440 | B25: 2010 | C25: CAMRY | D25: 112717 | E25: ='Input Sheet'!G75 -> 0 | F25: ='Input Sheet'!H75 -> 0 | G25: ='Input Sheet'!I75 -> 0 | H25: ='Input Sheet'!J75 -> 0 | I25: 0 | J25: 42 | K25: 0.6 | L25: ='Input Sheet'!N75 -> 0 | M25: ='Input Sheet'!O75 -> 0 | N25: 0 | O25: ='Input Sheet'!Q75 -> 0 | P25: ='Input Sheet'!R75 -> 0 | Q25: ='Input Sheet'!S75 -> 0 | R25: ='Input Sheet'!T75 -> 0 | S25: 0 | T25: 71.95 | U25: 3
A26: 188441 | B26: 2016 | C26: CAMRY | D26: 27950 | E26: 22.99 | F26: 0.3 | G26: ='Input Sheet'!I76 -> 0 | H26: ='Input Sheet'!J76 -> 0 | I26: 0 | J26: ='Input Sheet'!L76 -> 0 | K26: ='Input Sheet'!M76 -> 0 | L26: ='Input Sheet'!N76 -> 0 | M26: ='Input Sheet'!O76 -> 0 | N26: 0 | O26: ='Input Sheet'!Q76 -> 0 | P26: ='Input Sheet'!R76 -> 0 | Q26: ='Input Sheet'!S76 -> 0 | R26: ='Input Sheet'!T76 -> 0 | S26: 0 | T26: 25.12 | U26: 1
A27: 188442 | B27: 2009 | C27: TACOMA | D27: 110169 | E27: ='Input Sheet'!G77 -> 0 | F27: ='Input Sheet'!H77 -> 0 | G27: ='Input Sheet'!I77 -> 0 | H27: ='Input Sheet'!J77 -> 0 | I27: 0 | J27: 42 | K27: 0.6 | L27: ='Input Sheet'!N77 -> 0 | M27: ='Input Sheet'!O77 -> 0 | N27: 0 | O27: ='Input Sheet'!Q77 -> 0 | P27: ='Input Sheet'!R77 -> 0 | Q27: ='Input Sheet'!S77 -> 0 | R27: ='Input Sheet'!T77 -> 0 | S27: 0 | T27: 64.71 | U27: 5
A28: 188447 | B28: 1997 | C28: CAMRY | D28: 264339 | F28: ='Input Sheet'!H78 -> 0 | G28: ='Input Sheet'!I78 -> 0 | H28: ='Input Sheet'!J78 -> 0 | I28: 0 | J28: ='Input Sheet'!L78 -> 0 | K28: ='Input Sheet'!M78 -> 0 | L28: ='Input Sheet'!N78 -> 0 | M28: ='Input Sheet'!O78 -> 0 | N28: 0 | O28: 5 | P28: 0.4 | Q28: ='Input Sheet'!S78 -> 0 | R28: ='Input Sheet'!T78 -> 0 | S28: 0 | T28: 15.94 | U28: 2
A29: 188453 | B29: 2014 | C29: COROLLA | D29: 54098 | E29: ='Input Sheet'!G79 -> 0 | F29: ='Input Sheet'!H79 -> 0 | G29: ='Input Sheet'!I79 -> 0 | H29: ='Input Sheet'!J79 -> 0 | I29: 0 | J29: 20 | K29: 0.3 | L29: ='Input Sheet'!N79 -> 0 | M29: ='Input Sheet'!O79 -> 0 | N29: 0 | O29: ='Input Sheet'!Q79 -> 0 | P29: ='Input Sheet'!R79 -> 0 | Q29: ='Input Sheet'!S79 -> 0 | R29: ='Input Sheet'!T79 -> 0 | S29: 0 | T29: 49.95 | U29: 1
A30: 188454 | B30: 2015 | C30: COROLLA | D30: 24619 | E30: 22.99 | F30: 0.3 | G30: ='Input Sheet'!I80 -> 0 | H30: ='Input Sheet'!J80 -> 0 | I30: 0 | J30: ='Input Sheet'!L80 -> 0 | K30: ='Input Sheet'!M80 -> 0 | L30: ='Input Sheet'!N80 -> 0 | M30: ='Input Sheet'!O80 -> 0 | N30: 0 | O30: ='Input Sheet'!Q80 -> 0 | P30: ='Input Sheet'!R80 -> 0 | Q30: ='Input Sheet'!S80 -> 0 | R30: ='Input Sheet'!T80 -> 0 | S30: 0 | T30: 22.99 | U30: 1
A31: 188455 | B31: 2014 | C31: LEXUS | D31: 47634 | E31: 22.99 | F31: 0.3 | G31: ='Input Sheet'!I81 -> 0 | H31: ='Input Sheet'!J81 -> 0 | I31: 0 | J31: ='Input Sheet'!L81 -> 0 | K31: ='Input Sheet'!M81 -> 0 | L31: ='Input Sheet'!N81 -> 0 | M31: ='Input Sheet'!O81 -> 0 | N31: 0 | O31: ='Input Sheet'!Q81 -> 0 | P31: ='Input Sheet'!R81 -> 0 | Q31: ='Input Sheet'!S81 -> 0 | R31: ='Input Sheet'!T81 -> 0 | S31: 0 | T31: 22.99 | U31: 1
A32: 188456 | B32: 2013 | C32: PRIUS | D32: 71106 | E32: 22.99 | F32: 0.3 | G32: ='Input Sheet'!I82 -> 0 | H32: ='Input Sheet'!J82 -> 0 | I32: 0 | J32: ='Input Sheet'!L82 -> 0 | K32: ='Input Sheet'!M82 -> 0 | L32: ='Input Sheet'!N82 -> 0 | M32: ='Input Sheet'!O82 -> 0 | N32: 0 | O32: ='Input Sheet'!Q82 -> 0 | P32: ='Input Sheet'!R82 -> 0 | Q32: ='Input Sheet'!S82 -> 0 | R32: ='Input Sheet'!T82 -> 0 | S32: 0 | T32: 22.99 | U32: 1
A33: 188457 | B33: 2013 | C33: LAND CRUISER | D33: 62307 | E33: ='Input Sheet'!G83 -> 0 | F33: ='Input Sheet'!H83 -> 0 | G33: ='Input Sheet'!I83 -> 0 | H33: ='Input Sheet'!J83 -> 0 | I33: 0 | J33: 42 | K33: 0.6 | L33: ='Input Sheet'!N83 -> 0 | M33: ='Input Sheet'!O83 -> 0 | N33: 0 | O33: ='Input Sheet'!Q83 -> 0 | P33: ='Input Sheet'!R83 -> 0 | Q33: ='Input Sheet'!S83 -> 0 | R33: ='Input Sheet'!T83 -> 0 | S33: 0 | T33: 86.95 | U33: 2
A34: 188459 | B34: 2012 | C34: 4 RUNNER | D34: 89623 | E34: ='Input Sheet'!G84 -> 0 | F34: ='Input Sheet'!H84 -> 0 | G34: ='Input Sheet'!I84 -> 0 | H34: ='Input Sheet'!J84 -> 0 | I34: 0 | J34: 20 | K34: 0.4 | L34: ='Input Sheet'!N84 -> 0 | M34: ='Input Sheet'!O84 -> 0 | N34: 0 | O34: ='Input Sheet'!Q84 -> 0 | P34: ='Input Sheet'!R84 -> 0 | Q34: ='Input Sheet'!S84 -> 0 | R34: ='Input Sheet'!T84 -> 0 | S34: 0 | T34: 54.95 | U34: 1
A35: 188460 | B35: 2013 | C35: TUNDRA | D35: 127145 | E35: ='Input Sheet'!G85 -> 0 | F35: ='Input Sheet'!H85 -> 0 | G35: ='Input Sheet'!I85 -> 0 | H35: ='Input Sheet'!J85 -> 0 | I35: 0 | J35: 20 | K35: 0.4 | L35: ='Input Sheet'!N85 -> 0 | M35: ='Input Sheet'!O85 -> 0 | N35: 0 | O35: ='Input Sheet'!Q85 -> 0 | P35: ='Input Sheet'!R85 -> 0 | Q35: ='Input Sheet'!S85 -> 0 | R35: ='Input Sheet'!T85 -> 0 | S35: 0 | T35: 64.95 | U35: 1
A36: 188461 | B36: 2001 | C36: TUNDRA | D36: 200925 | E36: ='Input Sheet'!G86 -> 0 | F36: ='Input Sheet'!H86 -> 0 | G36: ='Input Sheet'!I86 -> 0 | H36: ='Input Sheet'!J86 -> 0 | I36: 0 | J36: ='Input Sheet'!L86 -> 0 | K36: ='Input Sheet'!M86 -> 0 | L36: ='Input Sheet'!N86 -> 0 | M36: ='Input Sheet'!O86 -> 0 | N36: 0 | O36: 178.5 | P36: 1.5 | Q36: ='Input Sheet'!S86 -> 0 | R36: ='Input Sheet'!T86 -> 0 | S36: 0 | T36: 739.16 | U36: 2
A37: 188463 | B37: 2009 | C37: CAMRY | D37: 149782 | E37: ='Input Sheet'!G87 -> 0 | F37: ='Input Sheet'!H87 -> 0 | G37: ='Input Sheet'!I87 -> 0 | H37: ='Input Sheet'!J87 -> 0 | I37: 0 | J37: ='Input Sheet'!L87 -> 0 | K37: ='Input Sheet'!M87 -> 0 | L37: ='Input Sheet'!N87 -> 0 | M37: ='Input Sheet'!O87 -> 0 | N37: 0 | O37: 119.99 | P37: 1 | Q37: ='Input Sheet'!S87 -> 0 | R37: ='Input Sheet'!T87 -> 0 | S37: 0 | T37: 119.99 | U37: 1
A38: 188465C | B38: 2013 | C38: COROLLA | D38: 71114 | E38: ='Input Sheet'!G88 -> 0 | F38: ='Input Sheet'!H88 -> 0 | G38: ='Input Sheet'!I88 -> 0 | H38: ='Input Sheet'!J88 -> 0 | I38: 0 | J38: 20 | K38: 0.4 | L38: ='Input Sheet'!N88 -> 0 | M38: ='Input Sheet'!O88 -> 0 | N38: 0 | O38: ='Input Sheet'!Q88 -> 0 | P38: ='Input Sheet'!R88 -> 0 | Q38: ='Input Sheet'!S88 -> 0 | R38: ='Input Sheet'!T88 -> 0 | S38: 0 | T38: 49.95 | U38: 3
A39: 188469 | B39: 2016 | C39: AVALON | D39: 29934 | E39: ='Input Sheet'!G89 -> 0 | F39: ='Input Sheet'!H89 -> 0 | G39: ='Input Sheet'!I89 -> 0 | H39: ='Input Sheet'!J89 -> 0 | I39: 0 | J39: 20 | K39: 0.4 | L39: ='Input Sheet'!N89 -> 0 | M39: ='Input Sheet'!O89 -> 0 | N39: 0 | O39: ='Input Sheet'!Q89 -> 0 | P39: ='Input Sheet'!R89 -> 0 | Q39: ='Input Sheet'!S89 -> 0 | R39: ='Input Sheet'!T89 -> 0 | S39: 0 | T39: 47.28 | U39: 1
A40: 188471 | B40: 2016 | C40: RAV4 | D40: 49966 | E40: 22 | F40: 0.28 | G40: ='Input Sheet'!I90 -> 0 | H40: ='Input Sheet'!J90 -> 0 | I40: 0 | J40: ='Input Sheet'!L90 -> 0 | K40: ='Input Sheet'!M90 -> 0 | L40: ='Input Sheet'!N90 -> 0 | M40: ='Input Sheet'!O90 -> 0 | N40: 0 | O40: ='Input Sheet'!Q90 -> 0 | P40: ='Input Sheet'!R90 -> 0 | Q40: ='Input Sheet'!S90 -> 0 | R40: ='Input Sheet'!T90 -> 0 | S40: 0 | T40: 185.6 | U40: 2
A41: 188473 | B41: 2012 | C41: COROLLA | D41: 64367 | E41: ='Input Sheet'!G91 -> 0 | F41: ='Input Sheet'!H91 -> 0 | G41: ='Input Sheet'!I91 -> 0 | H41: ='Input Sheet'!J91 -> 0 | I41: 0 | J41: 22 | K41: 0.4 | L41: ='Input Sheet'!N91 -> 0 | M41: ='Input Sheet'!O91 -> 0 | N41: 0 | O41: ='Input Sheet'!Q91 -> 0 | P41: ='Input Sheet'!R91 -> 0 | Q41: ='Input Sheet'!S91 -> 0 | R41: ='Input Sheet'!T91 -> 0 | S41: 0 | T41: 49.95 | U41: 7
A42: 188474 | B42: 2013 | C42: CAMRY | D42: 72455 | E42: ='Input Sheet'!G92 -> 0 | F42: ='Input Sheet'!H92 -> 0 | G42: ='Input Sheet'!I92 -> 0 | H42: ='Input Sheet'!J92 -> 0 | I42: 0 | J42: 20 | K42: 0.4 | L42: ='Input Sheet'!N92 -> 0 | M42: ='Input Sheet'!O92 -> 0 | N42: 0 | O42: ='Input Sheet'!Q92 -> 0 | P42: ='Input Sheet'!R92 -> 0 | Q42: ='Input Sheet'!S92 -> 0 | R42: ='Input Sheet'!T92 -> 0 | S42: 0 | T42: 49.95 | U42: 2
A43: 188479 | B43: 2011 | C43: PRIUS | D43: 44550 | E43: ='Input Sheet'!G93 -> 0 | F43: ='Input Sheet'!H93 -> 0 | G43: ='Input Sheet'!I93 -> 0 | H43: ='Input Sheet'!J93 -> 0 | I43: 0 | J43: 20 | K43: 0.4 | L43: ='Input Sheet'!N93 -> 0 | M43: ='Input Sheet'!O93 -> 0 | N43: 0 | O43: ='Input Sheet'!Q93 -> 0 | P43: ='Input Sheet'!R93 -> 0 | Q43: ='Input Sheet'!S93 -> 0 | R43: ='Input Sheet'!T93 -> 0 | S43: 0 | T43: 49.95 | U43: 1
A44: 188480 | B44: 2014 | C44: TUNDRA | D44: 107051 | E44: 91.03 | F44: 1 | G44: ='Input Sheet'!I94 -> 0 | H44: ='Input Sheet'!J94 -> 0 | I44: 0 | J44: ='Input Sheet'!L94 -> 0 | K44: ='Input Sheet'!M94 -> 0 | L44: ='Input Sheet'!N94 -> 0 | M44: ='Input Sheet'!O94 -> 0 | N44: 0 | O44: ='Input Sheet'!Q94 -> 0 | P44: ='Input Sheet'!R94 -> 0 | Q44: ='Input Sheet'!S94 -> 0 | R44: ='Input Sheet'!T94 -> 0 | S44: 0 | T44: 169.95 | U44: 2
A45: 188481 | B45: 2010 | C45: LEXUS | D45: 147604 | E45: 42 | F45: 0.6 | G45: ='Input Sheet'!I95 -> 0 | H45: ='Input Sheet'!J95 -> 0 | I45: 0 | J45: ='Input Sheet'!L95 -> 0 | K45: ='Input Sheet'!M95 -> 0 | L45: ='Input Sheet'!N95 -> 0 | M45: ='Input Sheet'!O95 -> 0 | N45: 0 | O45: ='Input Sheet'!Q95 -> 0 | P45: ='Input Sheet'!R95 -> 0 | Q45: ='Input Sheet'!S95 -> 0 | R45: ='Input Sheet'!T95 -> 0 | S45: 0 | T45: 81.95 | U45: 2
A46: 188482 | B46: 2009 | C46: HIGHLANDER | D46: 182668 | E46: ='Input Sheet'!G96 -> 0 | F46: ='Input Sheet'!H96 -> 0 | G46: ='Input Sheet'!I96 -> 0 | H46: ='Input Sheet'!J96 -> 0 | I46: 0 | J46: 20 | K46: 0.4 | L46: ='Input Sheet'!N96 -> 0 | M46: ='Input Sheet'!O96 -> 0 | N46: 0 | O46: ='Input Sheet'!Q96 -> 0 | P46: ='Input Sheet'!R96 -> 0 | Q46: ='Input Sheet'!S96 -> 0 | R46: ='Input Sheet'!T96 -> 0 | S46: 0 | T46: 39.95 | U46: 1
A47: 188483 | B47: 2011 | C47: CAMRY HYBRID | D47: 49535 | E47: ='Input Sheet'!G97 -> 0 | F47: ='Input Sheet'!H97 -> 0 | G47: ='Input Sheet'!I97 -> 0 | H47: ='Input Sheet'!J97 -> 0 | I47: 0 | J47: 42 | K47: 0.6 | L47: ='Input Sheet'!N97 -> 0 | M47: ='Input Sheet'!O97 -> 0 | N47: 0 | O47: ='Input Sheet'!Q97 -> 0 | P47: ='Input Sheet'!R97 -> 0 | Q47: ='Input Sheet'!S97 -> 0 | R47: ='Input Sheet'!T97 -> 0 | S47: 0 | T47: 61.95 | U47: 4
A48: 188484 | B48: 2005 | C48: LAND CRUISER | D48: 227975 | E48: ='Input Sheet'!G98 -> 0 | F48: ='Input Sheet'!H98 -> 0 | G48: ='Input Sheet'!I98 -> 0 | H48: ='Input Sheet'!J98 -> 0 | I48: 0 | J48: 42 | K48: 0.6 | L48: ='Input Sheet'!N98 -> 0 | M48: ='Input Sheet'!O98 -> 0 | N48: 0 | O48: ='Input Sheet'!Q98 -> 0 | P48: ='Input Sheet'!R98 -> 0 | Q48: ='Input Sheet'!S98 -> 0 | R48: ='Input Sheet'!T98 -> 0 | S48: 0 | T48: 70.95 | U48: 2
A49: 188488 | B49: 2011 | C49: HIGHLANDER | D49: 191384 | E49: 22 | F49: 0.3 | G49: ='Input Sheet'!I99 -> 0 | H49: ='Input Sheet'!J99 -> 0 | I49: 0 | J49: ='Input Sheet'!L99 -> 0 | K49: ='Input Sheet'!M99 -> 0 | L49: ='Input Sheet'!N99 -> 0 | M49: ='Input Sheet'!O99 -> 0 | N49: 0 | O49: ='Input Sheet'!Q99 -> 0 | P49: ='Input Sheet'!R99 -> 0 | Q49: ='Input Sheet'!S99 -> 0 | R49: ='Input Sheet'!T99 -> 0 | S49: 0 | T49: 247.6 | U49: 2
A50: 188489 | B50: 2012 | C50: CAMRY | D50: 75810 | E50: ='Input Sheet'!G100 -> 0 | F50: ='Input Sheet'!H100 -> 0 | G50: ='Input Sheet'!I100 -> 0 | H50: ='Input Sheet'!J100 -> 0 | I50: 0 | J50: 20 | K50: 0.4 | L50: ='Input Sheet'!N100 -> 0 | M50: ='Input Sheet'!O100 -> 0 | N50: 0 | O50: ='Input Sheet'!Q100 -> 0 | P50: ='Input Sheet'!R100 -> 0 | Q50: ='Input Sheet'!S100 -> 0 | R50: ='Input Sheet'!T100 -> 0 | S50: 0 | T50: 49.95 | U50: 2
A51: 188491 | B51: 2012 | C51: CAMRY | D51: 106030 | E51: ='Input Sheet'!G101 -> 0 | F51: ='Input Sheet'!H101 -> 0 | G51: ='Input Sheet'!I101 -> 0 | H51: ='Input Sheet'!J101 -> 0 | I51: 0 | J51: 20 | K51: 0.4 | L51: ='Input Sheet'!N101 -> 0 | M51: ='Input Sheet'!O101 -> 0 | N51: 0 | O51: ='Input Sheet'!Q101 -> 0 | P51: ='Input Sheet'!R101 -> 0 | Q51: ='Input Sheet'!S101 -> 0 | R51: ='Input Sheet'!T101 -> 0 | S51: 0 | T51: 49.95 | U51: 2
A52: 188492 | B52: 2015 | C52: COROLLA | D52: 47158 | E52: 22.99 | F52: 0.3 | G52: ='Input Sheet'!I102 -> 0 | H52: ='Input Sheet'!J102 -> 0 | I52: 0 | J52: ='Input Sheet'!L102 -> 0 | K52: ='Input Sheet'!M102 -> 0 | L52: ='Input Sheet'!N102 -> 0 | M52: ='Input Sheet'!O102 -> 0 | N52: 0 | O52: ='Input Sheet'!Q102 -> 0 | P52: ='Input Sheet'!R102 -> 0 | Q52: ='Input Sheet'!S102 -> 0 | R52: ='Input Sheet'!T102 -> 0 | S52: 0 | T52: 25.12 | U52: 1
A53: 188493 | B53: 2003 | C53: SEQUOIA | D53: 291414 | E53: ='Input Sheet'!G103 -> 0 | F53: ='Input Sheet'!H103 -> 0 | G53: ='Input Sheet'!I103 -> 0 | H53: ='Input Sheet'!J103 -> 0 | I53: 0 | J53: 20 | K53: 0.4 | L53: ='Input Sheet'!N103 -> 0 | M53: ='Input Sheet'!O103 -> 0 | N53: 0 | O53: ='Input Sheet'!Q103 -> 0 | P53: ='Input Sheet'!R103 -> 0 | Q53: ='Input Sheet'!S103 -> 0 | R53: ='Input Sheet'!T103 -> 0 | S53: 0 | T53: 48.95 | U53: 1
A54: 188413C | B54: 2016 | C54: CAMRY | D54: 40114 | E54: 119.99 | F54: 1 | G54: ='Input Sheet'!I104 -> 0 | H54: ='Input Sheet'!J104 -> 0 | I54: 0 | J54: ='Input Sheet'!L104 -> 0 | K54: ='Input Sheet'!M104 -> 0 | L54: ='Input Sheet'!N104 -> 0 | M54: ='Input Sheet'!O104 -> 0 | N54: 0 | O54: ='Input Sheet'!Q104 -> 0 | P54: ='Input Sheet'!R104 -> 0 | Q54: ='Input Sheet'!S104 -> 0 | R54: ='Input Sheet'!T104 -> 0 | S54: 0 | T54: 119.99 | U54: 2
A55: 188418 | B55: 2011 | C55: CAMRY | D55: 123056 | E55: 22.99 | F55: 0.3 | G55: ='Input Sheet'!I105 -> 0 | H55: ='Input Sheet'!J105 -> 0 | I55: 0 | J55: ='Input Sheet'!L105 -> 0 | K55: ='Input Sheet'!M105 -> 0 | L55: ='Input Sheet'!N105 -> 0 | M55: ='Input Sheet'!O105 -> 0 | N55: 0 | O55: ='Input Sheet'!Q105 -> 0 | P55: ='Input Sheet'!R105 -> 0 | Q55: ='Input Sheet'!S105 -> 0 | R55: ='Input Sheet'!T105 -> 0 | S55: 0 | T55: 22.99 | U55: 2
A56: RO's 51-100 | D56: Totals | E56: =SUM(E6:E55) -> 895.86 | F56: =SUM(F6:F55) -> 10.38 | I56: =SUM(I6:I55) ->  | J56: =SUM(J6:J55) -> 738 | K56: =SUM(K6:K55) -> 12.9 | N56: =SUM(N6:N55) ->  | O56: =SUM(O6:O55) -> 326.48 | P56: =SUM(P6:P55) -> 3.3 | S56: =SUM(S6:S55) ->  | T56: =SUM(T6:T55) -> 4352.9 | U56: =COUNTIF(U5:U55,1) -> 26
A57: Date of Study: | E57: C Labor | J57: M Labor | O57: R Labor | T57: Total Cost of Labor | U57: One Item Repair Order
A58: Study Compiled by | E58: Labor Sales | F58: Flat Rate Hours | G58: Technician Number | H58: Pay Per FRH | I58: Labor Cost | J58: Labor Sales | K58: Flat Rate Hours | L58: Technician Number | M58: Pay Per FRH | N58: Labor Cost | O58: Labor Sales | P58: Flat Rate Hours | Q58: Technician Number | R58: Pay Per FRH | S58: Labor Cost

Sheet Summary Report
C1: Repair Order Analysis Summary Report
E3: Sales in Dollars | G3: FRH's on RO's
I4: Averages | J4: Analysis
C5: Competitive | E5: ='RO Report 1-50'!E56+'RO Report 51-100'!E56 -> 2575.02 | F5: ÷ | G5: ='RO Report 1-50'!F56+'RO Report 51-100'!F56 -> 45.04 | H5: = | I5: =IF(ISERROR(E5/G5),"",E5/G5) -> 57.17184725 | J5: FRH Average
C6: Maintenance | E6: ='RO Report 1-50'!J56+'RO Report 51-100'!J56 -> 1398.95 | F6: ÷ | G6: ='RO Report 1-50'!K56+'RO Report 51-100'!K56 -> 26.39 | H6: = | I6: =IF(ISERROR(E6/G6),"",E6/G6) -> 53.01061008 | J6: FRH Average
C7: Repair | E7: ='RO Report 1-50'!O56+'RO Report 51-100'!O56 -> 239617.3271 | F7: ÷ | G7: ='RO Report 1-50'!P56+'RO Report 51-100'!P56 -> 2945.15 | H7: = | I7: =IF(ISERROR(E7/G7),"",E7/G7) -> 81.35997389 | J7: FRH Average
C8: Totals | E8: =SUM(E5:E7) -> 4766.07 | F8: ÷ | G8: =SUM(G5:G7) -> 99.43 | H8: = | I8: =IF(ISERROR(E8/G8),"",E8/G8) -> 47.93392336 | J8: Customer ELR
H9: Target Labor Rate | I9: 93 | J9: Per FRH
C10: Total Ro's in Sample | E10: 100 | H10: Difference | I10: =IF(ISERROR(I8-I9),"",I8-I9) -> 47.93392336 | J10: Per FRH
C12: Cost of Labor
C13: Total Cost of Labor | E13: ='Input Sheet'!V106 -> 7700.14 | F13: ÷ | G13: Total Sales | H13: = | I13: =IF(ISERROR(E13/E8),"",E13/E8) -> 0.004196329471 | J13: Percent Cost of Sales
C14: Total Cost of Labor | E14: =E13 -> 7700.14 | F14: ÷ | G14: Total FRH's | H14: = | I14: =IF(ISERROR(E14/G8),"",E14/G8) -> 0.2011465353 | J14: Cost per FRH
C16: Repair Order Measurements
C17: Total Labor Sales | E17: =E8 -> 4766.07 | F17: ÷ | G17: Total RO's | H17: = | I17: =IF(ISERROR(E17/E10),"",E17/E10) ->  | J17: Avg Labor per RO
C18: Total FRH's | E18: =G8 -> 99.43 | F18: ÷ | G18: Total RO's | H18: = | I18: =IF(ISERROR(E18/E10),"",E18/E10) ->  | J18: Avg FRH's per RO
C19: Menu Sales | F19: ÷ | G19: Total RO's | H19: = | J19: Percent Menu Sales
C20: Competitive FRH's | E20: =G5 -> 45.04 | F20: ÷ | G20: Total FRH's | H20: = | I20: =IF(ISERROR(E20/G8),"",(E20/G8)) -> 0.4529819974 | J20: Percent Competitive
C21: Maintenance FRH's | E21: =G6 -> 26.39 | F21: ÷ | G21: Total FRH's | H21: = | I21: =IF(ISERROR(E21/G8),"",(E21/G8)) -> 0.2654128533 | J21: Percent Maintenance
C22: Repair FRH' | E22: =G7 -> 2945.15 | F22: ÷ | G22: Total FRH's | H22: = | I22: =IF(ISERROR(E22/G8),"",E22/G8) -> 0.2816051494 | J22: Percent Repair
C23: One item RO's | E23: ='RO Report 1-50'!U56+'RO Report 51-100'!U56 -> 63 | F23: ÷ | G23: Total RO's | H23: = | I23: =IF(ISERROR(E23/E10),"",E23/E10) -> 0.63 | J23: Percent One Item RO
C25: Model Year Analysis
C26: =YEAR(Title!K17)+1 -> 2019 | D26: =YEAR(Title!K17) -> 2018 | E26: =YEAR(Title!K17)-1 -> 2017 | G26: =YEAR(Title!K17)-2 -> 2016 | H26: =YEAR(Title!K17)-3 -> 2015 | J26: =YEAR(Title!K17)-4 -> 2014 | K26: Older | L26: Total
C27: =COUNTIF('Input Sheet'!D6:D105,C26) -> 0 | D27: =COUNTIF('Input Sheet'!D6:D105,D26) -> 0 | E27: =COUNTIF('Input Sheet'!D6:D105,E26) -> 1 | G27: =COUNTIF('Input Sheet'!D6:D105,G26) -> 13 | H27: =COUNTIF('Input Sheet'!D6:D105,H26) -> 9 | J27: =COUNTIF('Input Sheet'!D6:D105,J26) -> 9 | K27: =L27-(SUM(C27:J27)) -> 68 | L27: =DCOUNTA('Input Sheet'!C4:F105,"Year",'Input Sheet'!D4:D105) -> 100
C28: =IF(ISERROR(C27/L27),"",C27/L27) -> 0 | D28: =IF(ISERROR(D27/L27),"",D27/L27) -> 0 | E28: =IF(ISERROR(E27/L27),"",E27/L27) -> 0.01 | G28: =IF(ISERROR(G27/L27),"",G27/L27) -> 0.13 | H28: =IF(ISERROR(H27/L27),"",H27/L27) -> 0.09 | J28: =IF(ISERROR(J27/L27),"",J27/L27) -> 0.09 | K28: =IF(ISERROR(K27/L27),"",K27/L27) -> 0.68
